{"text_format":"1","workbook":"xlsx","n_sheets":2,"sheets":["Clients","BLF"],"not_rendered":{"charts":0,"images":1,"macros":1,"external_links":0,"defined_names":6,"comments":0,"pivot_tables":0},"unopened":[],"bounds":{"document_bytes":16777216,"sheet_cells":100000,"rows_first":2000,"rows_last":500,"rows_between":2000,"halvings":0,"cell_chars":16384,"cell_head_chars":4096},"cells_cut":0,"cells_raw":0,"read":"whole","date_system":"1900"}

{"sheet":"Clients","index":0,"n_rows":740,"n_cols":4,"rows_kept":740,"cut":false,"hidden":true,"merged":[]}
["Code","Secteur","Raison","Adresse"]
["A7734",35,"CFPA N°1 EL OUED","BD MOHAMED KHEMISTI"]
["A9170",35,"APC  EL MEGHAIER","EL MEGHAIER EL OUED"]
["A9305",35,"APC  DJAMAA","DJAMAA EL-OUED"]
["A9334",35,"APC GUEMAR","GUEMAR EL OUED"]
["A9447",35,"APC ROBBAH","ROBBAH"]
["B3051",22,"GUERROUF MAHMOUD","DJAMAA EL OUED"]
["C2142",23,"SOUID ABDALLAH","GHAMRA GUEMAR W EL OUED"]
["C4591",23,"BEY ABDELHAFID","RTE DE TOZEUR EL OUED"]
["C7280",35,"APC EL OUED","BD MOHAMED KHEMISTI"]
["C8516",80,"CLIENT ANNULE (ABADI  EL HACHEMI)","BAYADA W EL OUED"]
["D1024",30,"HOTEL DU SOUF","EL OUED"]
["D4615",23,"BAHRI LAROUCI","CITE CHOUHADA HASSI KHALIFA"]
["D5174",35,"DIRECTION DES TRAVAUX PUB","EL-OUED"]
["E0362",35,"LYCEE MIXTE EL OUED","EL OUED"]
["E1209",30,"MAHMOUDI FOUAD","CITE POSTE GUEMAR W. EL OUED"]
["E1313",35,"ECOLE FOND BACHIR EL IBRA","HIMI GUEMAR EL OUED"]
["E1409",30,"PVO SOUID ABDALLAH","Z'GOUM EL OUED"]
["E1424",35,"ECOLE FOND  EL OUED","ROUTE DE TOUGGOURT EL OUED"]
["E1820",10,"SONELGAZ ZONE DE DISTRIB.","CITE MOHAMED KHEMISTI EL OUED"]
["E1931",10,"COSMESAV EL OUED","EL GARA EL OUED"]
["E1940",55,"OUALLBI  BOUBAKER","REGUIBA W EL OUED"]
["E1960",40,"MDN/DRC/ 4EME RM","OUARGLA"]
["E1967",30,"EDIMCO EL OUED","ROUTE DE BISKRA BP 103"]
["E1976",24,"HABITA LAID","EL OUED"]
["E2034",55,"GUETAIM BRAHIM","GUEMAR W EL OUED"]
["E2052",1,"OPIOR DJAMAA","DJAMAA EL OUED"]
["E2060",24,"DAOUDI DAOUDI","DEBILA EL OUED"]
["E2111",35,"D.W.P.T.I.C EL OUED","CITE BELLE VUE EL OUED"]
["E2112",35,"DVRH EL OUED","EL OUED"]
["E2126",35,"APC OGLA","EL OGLA W.EL OUED"]
["E2127",35,"APC NAKHLA","NAKHLA"]
["E2128",35,"APC DOUAR EL MAA","DOUAR EL MAA  W.EL OUED"]
["E2135",35,"APC OUERMES","OUERMES EL OUED"]
["E2136",35,"APC TAGHZOUT","TAGHZOUT EL OUED"]
["E2139",35,"APC BEN GUECHA","BEN GUECHA EL OUED"]
["E2141",35,"APC SIDI AMRANE","SIDI AMRANE EL-OUED"]
["E2142",35,"APC  TENDLA","TENDLA EL-OUED"]
["E2146",35,"APC MORARA","MORARA EL-OUED"]
["E2156",35,"APC  HASSI KHALIFA","HASSI KHALIFA W EL OUED"]
["E2159",35,"APC SIDI AOUN","SIDI AOUN W. EL OUED"]
["E2160",35,"APC  STILL","STILL  EL-OUED"]
["E2161",35,"APC  SIDI KHELIL","SIDI KHELIL EL-OUED"]
["E2162",35,"APC OUM THIOUR","OUM THIOUR EL-OUED"]
["E2170",35,"APC OUED ALENDA","OUED ALENDA"]
["E2171",35,"APC BAYADA","BAYADA W. EL-OUED"]
["E2172",35,"APC MIH OUENSA","MIH OUENSA"]
["E2173",35,"APC TRIFAOUI","TRIFAOUI EL OUED"]
["E2174",35,"DIRECTION HYDRAULIQUE EL OUED","CITE 19 MARS  EL OUED"]
["E2180",35,"DIRECTION J.ET SPORT EL OUED","CITE 19 MARS EL OUED"]
["E2181",35,"APC REGUIBA"," REGUIBA EL OUED"]
["E2182",35,"APC HAMRAYA","HAMRAYA  EL OUED"]
["E2183",35,"DUCH EL OUED","EL OUED"]
["E2187",35,"DIRECTION AGRICULTURE","EL OUED"]
["E2193",35,"WILAYA EL OUED","EL OUED"]
["E2209",35,"INSPECTION CANTINES SCOLAIRE","EL OUED"]
["E2211",35,"DIRECTION DE TRANSPORT EL OUED","EL OUED"]
["E2212",35,"DIRECTION INDUS ET ENRG","EL OUED"]
["E2216",55,"STE MOSTAFAOUI","CITE OULED AHMED EL OUED"]
["E2227",35,"DIRECTION DE LA SANTE EL OUED","CITE NAKHIL EL OUED"]
["E2229",35,"UGTA EL OUED","EL OUED"]
["E2248",35,"D.F.E.P EL OUED","CITE 19 MARS W.EL OUED"]
["E2253",30,"EDIED EL OUED","ROUTE DE TOZEUR EL OUED"]
["E2267",35,"OPGI EL OUED","EL OUED"]
["E2338",35,"DIRECTION CULT ET TOURISM","EL OUED"]
["E2362",30,"EDIMA GUEMAR EL OUED","GUEMAR EL OUED"]
["E2970",55,"SARL FILS AMOURI MED HADI","CITE TIKSEBT EL OUED"]
["E4001",35,"ETABLISSEMENT DE PREVENTION","EL OUED"]
["E4271",35,"LYCEE HALI ABDELKRIM","GUEMAR EL OUED"]
["E4335",35,"PROTECTION CIVILE EL OUED","EL OUED"]
["E4953",45,"STE EL AMINE","HASSI KHLIFA EL OUED"]
["E4954",45,"STE DOGGA LOCATION","HASSI KHLIFA EL OUED"]
["E4956",26,"KHADEM LAZHAR","GHAMRA GUEMAR EL OUED"]
["E4961",22,"PVA AOUN ALI","CITE 19 MARS EL OUED"]
["E4979",55,"FETHIZA TEDJANI FARID","RUE DE TEBESSA EL OUED"]
["E4980",55,"DEROUICHE LAMINE","CITE LACHECHE EL OUED"]
["E4984",30,"SARL PROMO SCIENCE","CITE ERRIMEL EL OUED"]
["E4985",55,"SARL HOURIA SERVICES","CITE EL HOURIA EL OUED"]
["E4999",30,"SARL MAGROUD","ZEGOUM EL OUED"]
["E5001",26,"BOUSBIA BRAHIM A/MALEK","CITE SOUBALA BAYADA EL OUED"]
["E5012",55,"MAHMOUDI H. TAHAR DJILANI","CITE LAHACHE BP 892 EL OUED"]
["E5013",55,"MAHBOUB MOHAMED RIDHA","CITE ISTIKLAL EL OUED"]
["E5016",26,"EURL EZZAHRA","CITE CHOTT EL OUED"]
["E5017",26,"KENIOUA ADEL","CITE TIKSEBT EL OUED"]
["E5018",26,"MAOU IMAD EDDINE","CITE NEFTAL BP 215 GUEMAR EL OUED"]
["E5054",55,"HADJ AMMAR A/MADJID","BAYADA ROBBAH EL OUED"]
["E5057",45,"SARL TOUATI TRANSPORT","CITE 1ER NOVEMBRE EL OUED"]
["E5059",26,"FOUNAS TOUFIK","HAI OULAD AHMED EL OUED"]
["E5061",55,"EURL BOURAS ABITALEB","CITE MESSABA EL OUED"]
["E5062",26,"TOUATI ALI","CITE EL HOURIA EL OUED"]
["E5063",26,"GUESSEIR SAMIRA","RUE EL QUODS EL OUED"]
["E5067",55,"SARL SOGECT","KOUININE EL OUED"]
["E5068",55,"BEN AMOR ABDERAZZAK","CITE CHOUHADA EL OUED"]
["E5071",55,"DEROUICHE RACHID","CITE TEKSEBT EL OUED"]
["E5077",22,"MESSAOUDI DJAMAL","SIDI AMRANE EL OUED"]
["E5086",45,"SOCIETE ZEGHIB","MAGRANE EL OUED"]
["E5087",55,"CHELLIG SAID","BP 247 BELLE VUE EL OUED"]
["E5088",55,"LEGMAIRI ALI","CITE EL GARA EL OUED"]
["E5089",45,"BELARBI ZAKIA","TRIFAOUI EL OUED"]
["E5090",30,"SARL FAMES","BP 19 HASSANI ABDELKRIM EL OUED"]
["E5091",55,"SNC HANI","TAGHZOUT EL OUED"]
["E5092",45,"MOUSSAOUI ADEM","CITE BELLE VUE EL OUED"]
["E5093",26,"MESSAOUDI KHALED","CITE  CHOTT EL OUED"]
["E5103",30,"SARL STE SOUF BITUMES ET HUILES","BP 82 BELLE VUE EL OUED"]
["E5104",55,"SPA COSIDER TRAVAUX PUBLIC","POLE T 95 EL OUED"]
["E5105",24,"ZOUBEIDI HADJ TAYAB","CITE MOUDJAHIDINE EL OUED"]
["E5114",55,"KHELAIFA ALI","CITE LOBZA EL HABIB MAGRANE"]
["E5115",10,"BEY KHALED","CITE EL ISTQLAL EL OUED"]
["E5116",45,"BEN AMOR MOHAMED TAHAR","CITE 17 OCTOBRE OUED EL ALENDA EL OUED"]
["E5117",55,"BOUSBIA LAICHE HACEN","CITE CHOTT EL OUED"]
["E5119",35,"CENTRE MEDICO PEDAGOGIQUE DJAMAA","BP 46 DJAMAA EL OUED"]
["E5121",35,"A.G.R.F.U WILAYA EL OUED","CITE 17 OCTOBRE EL OUED"]
["E5123",26,"HECHIFA TAREK","ROBBAH EL OUED"]
["E5124",22,"MAHDIA ABDELLAH","RN N°16 HASSI KHLIFA EL OUED"]
["E5330",40,"MDN/DRC 6EME RM","TAMANRASSET"]
["E6007",55,"STE HAROUNE ALI SARL","BP 01 MAGRANE W. EL OUED"]
["E6056",55,"OUALLABI  ALI","REGUIBA W EL OUED"]
["E6068",55,"HAMMADI BOUBAKEUR","CITE NAKHIL EL OUED W.EL OUED"]
["E6073",35,"DIRECTION DU COMMERCE","EL OUED"]
["E6089",45,"ETS ESSALEM DE TRANSPORT","RUE AHMED BOUGUERBA TAGHZOUT W.EL OUED"]
["E6098",35,"CTC EL OUED","BP 117 EL OUED"]
["E6101",24,"LEBBEHI MED SACI","EL MEGHAIER EL OUED"]
["E6102",35,"NOUVEAU LYCEE EL-MEGHAIER","EL-MEGHAIER EL OUED"]
["E6112",35,"LYCEE MIXTE DEBILA","DEBILA EL OUEG"]
["E6118",35,"BUR.ETUD.PLURIDISPLINAIRE","EL OUED"]
["E6123",35,"ECOLE FONDAMENTALE","TIKSEBT EL OUED"]
["E6129",35,"MAISON DE LA CULTURE","EL OUED"]
["E6190",35,"CNASSAT EL OUED","BP 170 EL OUED"]
["E6194",80,"(CLIENT ANNULE) BOUSBIA LAICHE BACHIR","ROBBAH W EL OUED"]
["E6202",10,"SARL DELIBA","HOBBA CHARGUIA GUEMAR W.EL OUED"]
["E6204",22,"PVA REHOUMA AMOR","CITE  OUMI SALMA EL OUED"]
["E6205",22,"ZOUBEIDI  ABDELMADJID","KOUININE W EL OUED"]
["E6207",24,"LADGHAM KAMEL","EL OUED"]
["E6212",24,"BEN ABDALLAH MILOUD","EL OUED"]
["E6219",35,"ECOLE FONDAMENTALE SAHAN 1","SAHAN 1 EL OUED"]
["E6239",55,"TOUATI AHMED NOUR EDDINE","SAHANE 2 EL OUED"]
["E6246",22,"LABIDI BELGACEM","HASSANI ABDELKRIM EL OUED"]
["E6260",35,"E.N.N.A AERODROME EL OUED /GUEMAR","GUEMAR EL OUED"]
["E6261",35,"CPA EL OUED","EL OUED"]
["E6263",55,"HAMZAOUI  ENT","DJAMAA W EL OUED"]
["E6264",10,"ENASSEL SALINE DE MEROUAN","EL MGHAIER EL OUED"]
["E6268",30,"E G S A EL OUED","GUEMAR  EL OUED"]
["E6270",35,"TECHNICUM MILOUDI LAROUCI","CHOUHADA EL OUED"]
["E6325",35,"LYCEE MIXTE","REGUIBA  EL OUED"]
["E6328",35,"BCA EL OUED","EL OUED"]
["E6339",55,"BEN AMOR   AMARA","BP 185 EL OUED"]
["E6343",22,"BEN BORDI SAIDI","RTE DE TGT EL OUED"]
["E6344",35,"TECHNICUM EL OUED","ROBBAH W.EL OUED"]
["E6353",24,"LABBI MESSAOUD","DEBILA EL OUED"]
["E6359",10,"MESSOUS MED SALAH","BP 17 KOUININE W EL OUED"]
["E6374",10,"CERAM-BEL","GUEMAR EL OUED"]
["E6390",35,"CENTRE SPECIALE DE REDUCT.EL OUED","EL OUED"]
["E6396",35,"C.N.R EL OUED","CITE ERRIMEL  EL OUED"]
["E6398",35,"ECOLE FONDle SIDI KHELIL","SIDI KHELIL  W EL OUED"]
["E6400",30,"EP ADE","BP 316 RP 39000 EL OUED"]
["E6409",1,"CASSAP GUEMAR","EL OUED"]
["E6411",24,"BERIBECHE MOHAMED","GHAMRA GUEMAR W. EL OUED"]
["E6413",30,"HOTEL  EL GHITANE","ZONE INDUS KOUININE W EL OUED"]
["E6414",45,"SOTRAV EL OUED","EL OUED"]
["E6418",24,"BENYAYA CHEMSEDINE","DJAMAA EL OUED"]
["E6438",35,"C F P A EL MEGHAIER","EL MEGHAIER  EL OUED"]
["E6448",35,"C F P A N°2 EL OUED","ROUTE DE TGT EL OUED"]
["E6468",22,"PVA REDOUANI NACER","REGUIBA EL OUED"]
["E6469",35,"DIR AFF DOM ET FONCIERES","AVENUE EMIR ABEDELKADER EL OUED"]
["E6472",35,"ZGENCE FONC EBT COM","BP 341 CITE 17 OCTOBRE EL OUED"]
["E6474",24,"HAMIDA AHMED","NEZLA FACE MARCHE BETAILLE"]
["E6476",10,"ENTR D'EXPL DES SELS","CHOTT HAMRATA"]
["E6478",35,"DIR DES IMPOTS","EL OUED CENTRE"]
["E6486",35,"DPSB EL OUED","EL OUED"]
["E6487",35,"AGENCE NATIONALE CADASTRE","EX BUREAUX DOUANE EL OUE"]
["E6491",35,"DIRECTION MOUDJAHIDINE","CITE 400 LOGTS"]
["E6504",55,"GASMI MILOUD","CITE EL GARA EL OUED"]
["E6520",35,"AGENCE FONC INTERCOM","CITE Z'DIHAR BAYADA"]
["E6533",22,"MEHDA KADDOUR","MIH OUENSSA"]
["E6534",35,"A.L.G.O.I.U. DJAMAA","DJAMAA"]
["E6535",35,"LYCEE MIXTE HASSI KHALIFA","HASSI KHALIFA"]
["E6540",55,"SARL WOUROUD","ZONE INDUSTRIELLE KOUININE EL OUED"]
["E6541",35,"LYCEE MAGRANE","MAGRANE EL OUED"]
["E6542",35,"ECOLE COMPLEMENTAIRE DOUAR EL MAA","DOUAR EL MAA EL OUED"]
["E6543",35,"AGENCE FONC.INTERCOMMUNAL","DEBILA"]
["E6546",55,"AHMOUDA ABDALLAH","BP 276 EL OUED"]
["E6547",24,"HAZIL ABDELKRIM","CITE SIDI ABDALLAH EL OUED"]
["E6549",35,"NIDHARA AFFAIRES RELIGIEU","CITE DES 400 LOGTS EL OUED"]
["E6555",35,"AGENCE LOCALE GESTION FON","EL MAGHAIER"]
["E6556",22,"PVA MILOUDI ABDELKRIM","CITE MOHAMED BOUDIAF HAMRAIA W.EL OUED"]
["E6557",35,"CFPA NØ3 EL OUED","EL OUED"]
["E6568",24,"E D I M A EL OUED","Z.I TIKSEBT EL OUED"]
["E6578",35,"CHAMBRE D'AGRICULTURE","DE LA WILAYA EL OUED"]
["E6580",55,"CHIHANI DJAMEL","CITE 17 OCTOBRE EL OUED"]
["E6582",22,"HIMA ABDELHAK","SIDI AOUN W.D'EL OUED"]
["E6587",35,"ECOLE POUR ENFANTS HANDICAPES VISUELS D'EL OUED","CITE EMIR ABDELKADER ROBBAH W.EL OUED"]
["E6588",35,"C A A T EL OUED","EL OUED"]
["E6590",35,"C N E P  EL OUED","CITE 400 LOGTS EL OUED"]
["E6591",35,"CNP ENF HAND MENTALEMENT","CITE 1ER NOVEMBRE EL OUED"]
["E6594",55,"DELIBA ALI","GHAMRA GUEMAR W.EL OUED"]
["E6600",40,"SECTEUR MILITAIRE EL OUED","EL OUED"]
["E6607",26,"SAOUDI LAHCENE","EL-MEGHAIR EL OUED"]
["E6611",35,"DIR.COMMUN.CULTURE","EL OUED"]
["E6616",55,"SNC FRERES BEGGAT GRAND TRAVAUX","GUEMAR EL OUED"]
["E6621",26,"BOUSNINA ABDEMWAHAB","AV.MD KHEMISTI EL OUED"]
["E6630",35,"ECOLE FONDAMEN.EL OUED","CITE BELLE VUE EL OUED"]
["E6634",22,"BOUGHAZALA MOHAMED MATALL","HASSI KHALIFA"]
["E6636",60,"SONATRACH ORGS SP2","MORARA DJAMAA"]
["E6637",24,"HABITA AMOR","CITE BELLEVUE EL OUED"]
["E6638",40,"401 EME BRDC","GUEMAR W. EL OUED"]
["E6640",35,"C.F.P.A DJAMAA","DJAMAA"]
["E6650",35,"OEUV.SOC.EDUCAT.NATIONALE","EL OUED"]
["E6651",35,"CONSERVATION DES FORETS","EL OUED"]
["E6653",55,"BEN KHALIFA SAMIR","OUERMES EL OUED"]
["E6657",55,"E G T B HOTEL LOUSSE","AVE MED KHEMISTI EL OUED"]
["E6661",55,"SARL STE EL GHAZEL","CITE ENAKHIL EL OUED"]
["E6662",24,"MAHNI ABDERRAZAK","DJAMAA EL OUED"]
["E6663",55,"STE EL HOGGAR","PLACE DU MARCHE DEBILA EL OUED"]
["E6664",55,"DAHDA MAHMOUD","CITE 1ER NOVEMBRE BAYADA W.EL OUED"]
["E6666",35,"ECOLE FONDAM. MAGRANE","MAGRANE"]
["E6670",35,"ECOLE FONDAM TRIFAOUI","TRIFAOUI W.EL OUED"]
["E6671",55,"SARL GUEDIRI ET FILS","CITE TIKSEBT W.EL OUED"]
["E6673",55,"EURL STE EZZAHRA LOC.MAT.ET ENTREPRISES","LOTISSEMENT ZAIM MED N°05 KOUININE EL OUED"]
["E6676",26,"BAGHDADI NABIL","KOUNINE"]
["E6682",35,"CFPA FEMININE N°4 SAHANE I EL OUED","SAHANE I EL OUED"]
["E6683",35,"CFPA ROBBAH","WILAYA D'EL OUED"]
["E6685",35,"CFPA DE GUEMAR","GUEMAR WILAYA D'EL OUED"]
["E6692",26,"DERRADJI MOHAMED TAYEB","CITE 1er MAI EL OUED"]
["E6699",26,"OTHMANI ABDELKADER","EL-OUED"]
["E6701",26,"GUEHEF ACHRAF RABIA","EL OUED"]
["E6706",26,"FOUHMA LAZHARI","BELLEVUE EL OUED"]
["E6708",1,"SOCPA DJAMAA","R N°:03 DAIRA DJAMAA"]
["E6710",1,"SOCIETE ACHRAF DATTES","DJAMAA EL OUED"]
["E6714",26,"ZEGHDI SAD","CITE 1ø NOVEMBRE EL OUED"]
["E6717",26,"GHERBI DJEMAA","CITE SAHANE 1 EL-OUED"]
["E6719",35,"A.N.S.E.J ANTENNE EL OUED","EL OUED"]
["E6720",55,"ZINE BRAHIM","EL OUED"]
["E6727",30,"SARL ELWAHA IMP/VENTE","EL OUED"]
["E6729",10,"STE ZEGUIBET PROD.PLATRE","Z.I HASSI KHALIFA EL OUED"]
["E6732",35,"COMPLEXE MULTISPORTS EL OUED","CITE CHOTT EL OUED"]
["E6733",55,"MADANI KARIM","BD MED KHEMISTI EL OUED"]
["E6735",45,"SEMAMA TEDJANI","CITE SAHAN 2 EL OUED W.EL OUED"]
["E6736",45,"SARL FRERES BOUTI","STILL EL OUED"]
["E6739",22,"TOUMI NOUREDDINE","PVA TALEB LARBI EL OUED"]
["E6752",35,"I.N.S.F.P EL OUED","ROUTE DE TEBESSA EL OUED"]
["E6757",30,"SARL BOISS.GAZEUSES SOUF","AVE MED KHEMISTI EL-OUED"]
["E6759",22,"PVA FERHAT ABDELMADJID","RTE DE TOUGOURT EL OUED"]
["E6760",26,"ADAIKA SALAH","CITE NEZLA EL OUED"]
["E6762",26,"BELAROUSSI FERHAT B/AHMED","SAHAN 1 EL OUED"]
["E6764",26,"GUESSOUM AHMED BENAMMAR","CITE ESSAADA KOUININE"]
["E6772",35,"CAISSE REG.MUT.AGR.CRMA","CITE 400 LOGTS EL OUED"]
["E6775",35,"ECOLE FON.AISSA MESSAOUDI","REGUIBA"]
["E6777",26,"NISSE CHOUKRI","GUEMAR EL OUED"]
["E6778",10,"SARL AOUN CONDITIONNEMENT DU SEL","EL HAMRAYA"]
["E6779",55,"STE EURL AFRIQUE NORD TRA","CITE ESSAADA KOUININE EL OUED"]
["E6782",55,"ENT TRAV H.R.ZERIBIT","CITE OULED AHMED EL OUED"]
["E6792",10,"ETB.PRO.SEMOUL NEJMA","HASSI KHALIFA EL-OUED"]
["E6797",22,"EURL ENT SALEMA SERVICES","CITE CHOTT EL OUED W.EL OUED"]
["E6799",55,"ARIGUE MOHAMED E.T.B","KOUININE EL OUED"]
["E6802",26,"ZEKKOUR FARHAT BRAHIM","CITE SAHAN 1 EL OUED"]
["E6803",35,"EL KHALIFA BANK","AGENCE EL OUED 107 BD MD KHEMISTI"]
["E6805",26,"CHEIKHA BELGACEM HANIA","CITE EL-KHOTAR BAYADA"]
["E6811",55,"EURL SARL BENAMAR","RTE DE TOUGGOURT EL OUED"]
["E6814",26,"NOUBLI KHALIL B/MADANI","CITE CHOUHADA HASSI KHALIFA"]
["E6815",35,"DIRECTION DE L'ENVIRONNEMENT EL OUED","RUE TALEB LARBI GUEMOUDI W.EL OUED"]
["E6817",26,"TEDJINI MOHAMED B/SAYAH","CITE ERIMEL REGUIBA"]
["E6823",26,"ZELACI LARBI BEN DJILANI","CITE LASNAM EL OUED"]
["E6830",26,"BOUSBIA BRAHIM YACINE","OULED AHMED EL OUED"]
["E6831",35,"DELEGATION GARDE COMMUNALE","WILAYA EL OUED"]
["E6833",35,"RTA RADIO SOUF","EL OUED"]
["E6836",35,"ECOLE FONDAMENTALE HAMMI","EL YAICHA MAGRANE"]
["E6838",55,"ETRP DERKI ABDALLAH","BP 27 CITE SIDI MASTOUR RUE MED KHEMISTI EL-OUED"]
["E6839",26,"MOUSSAOUI SAID","HASSI KHELIFA EL-OUED"]
["E6840",35,"ECOLE FOND M.EL-MILI","NICIGHA EL MEGHAIER"]
["E6846",10,"MAAMRA DJAMEL","CITE 1 NOV EL OUED"]
["E6848",55,"E.T.B MAHLOUS LAID","GUEMAR EL OUED"]
["E6849",22,"KADDOURI BACHIR","ELHAMADINE MAGRANE EL OUED"]
["E6851",26,"HAZIL MEBAREK","CITE SIDI ABDELLAH EL OUED"]
["E6852",26,"KHAZANI MOHAMED","GHAMRA GUEMAR EL OUED"]
["E6854",10,"SARL EL ETIHAD","CITE TOUGGOURT EL OUED"]
["E6856",26,"SARL AMOURI ET FILS","CITE TIKSEBT EL OUED"]
["E6857",26,"HAMDI MESBAH BEN ALI","RUE LIBERTE EL OUED"]
["E6858",22,"PVA BOUTERAA SALAH","HASSANI ABDELKRIM"]
["E6859",22,"PVA BOUZGHAIA AICHA","TRIFAOUI EL OUED"]
["E6861",22,"SARL STATION GUEMARI SERVICES","RN 03 STILL EL OUED"]
["E6864",35,"ECOLE FOND.AHRIZ TIDJANI","GUERMES EL OUED"]
["E6865",26,"KHATRAOUI MABROUKA","Z'GOUM HASSANI ABDELKRIM EL OUED"]
["E6867",26,"BENKADDOUR ADOUANI","CITE ELDJANAH ELKHDAR"]
["E6868",30,"B.E.A AGENCE EL OUED","EL OUED"]
["E6869",35,"O.D.E.J EL OUED","RUE SAID ABDELHAY EL OUED"]
["E6870",35,"ECOLE FOND.ELGHARBIA","EL MEGHAIR TGGT."]
["E6873",26,"MOUSSAOUI KAMAL","HASSI KHALIFA EL OUED"]
["E6874",10,"SARL ROYAL MONDIAL MUL/SE EL OUED","KOUININE EL OUED"]
["E6877",26,"MENNANI AZZALI","CITE EL HORIA EL OUED"]
["E6878",26,"GHENABZIA YOUCEF","CITE NAKHIL EL OUED"]
["E6880",26,"BERRABAH CHAABANE","ELMEGHAIER EL OUED"]
["E6881",55,"STE MEFTAH LOCATION","GUEMAR EL OUED"]
["E6882",26,"KASMI ABDELKRIM","DEBILA EL OUED"]
["E6883",26,"ALIA BACHIR","GHAMRA EL OUED"]
["E6885",26,"BENNOUR KHADIDJA","CITE OULED AHMED EL OUED"]
["E6888",22,"PVA LEMKADEM BRAHIM","BENGUECHA EL OUED"]
["E6890",26,"BEGGAS FATIHA","CITE CHOUHADA EL OUED"]
["E6895",35,"UNIVERSITE D'EL OUED","CITE CHOTT EL OUED W.EL OUED"]
["E6898",22,"PVA BOUZEGAG ABDELKRIM","R.N N'3 EL MEGHAIER"]
["E6899",26,"ATTALAH HANIA","CITE SAHAN EL OUED"]
["E6901",26,"MEDELLAL DJALAL","CITE NEDJAR EL OUED"]
["E6905",80,"CLIENT ANNULE (PVA REDOUANI SALAH)","PVA REDOUANI SALAHHOBBA REGUIBA EL OUED"]
["E6906",26,"GUERFI ALI","CITE CHOUHAD EL OUED"]
["E6908",26,"LAIB FAOUZI","SIDI AOUN DEBILA EL OUED"]
["E6920",45,"MERIGA HAMZA","CITE BELLE VUE EL OUED"]
["E6921",30,"TIR NABIL","CITE TEKSEBT EL OUED"]
["E6922",55,"SINOHYDRO PROJET SOUF 2éme TRANCHE","GUEMAR EL OUED"]
["E6923",55,"SINOHYDRO PROJET SOUF 1ére TRANCHE","CHOTT ROUTE DE TEBESSA EL OUED"]
["E6928",26,"SAID KAMEL","REGUIBA EL OUED"]
["E6933",55,"SARL EL DORSAF TRAVAUX PUBLICS","RUE EL KODS EL OUED"]
["E6934",26,"ZERIG BACHIR","BAYADA EL OUED"]
["E6937",26,"FELIOUNE ZOHRA","CITE DE 05 JUILLET EL BAYADA EL OUED"]
["E6939",22,"GUEDIRI SALIM","CITE TIKSEBT EL OUED"]
["F7804",40,"MDN/DRC/ 2EME RM","ORAN"]
["F8393",40,"MDN/DRC/ 3EME RM","BECHAR"]
["I2649",55,"KENIOUA BILAL","CITE TIKSBET W.EL OUED"]
["I2650",55,"SARL MAALOUL ENTREPRISES","CITE ISTIKLAL KOUININE W.EL OUED"]
["I2651",55,"BOUAMRA KHALIFA","CITE TIKSEBT W.EL OUED"]
["I2652",45,"AMMARI MESSAOUD","TENDLA DJAMAA W.EL OUED"]
["I2653",45,"NESRAT ABBES","CITE EMIR ABDELKADER W.EL OUED"]
["I2654",35,"CCLS EL OUED","CITE TIKSEBT W.EL OUED"]
["I2655",35,"CNAC EL OUED","CITE 19 MARS W.EL OUED"]
["I2656",26,"GHODBANE ABDALLAH","CITE BELLE VUE W.EL OUED"]
["I2657",24,"GHERBI ABDERRAKIB","ROBBAH W.EL OUED"]
["I2658",26,"MOUSSAOUI BACHIR","CITE CHOUAIHA HASSI KHALFA W.EL OUED"]
["I2659",55,"SARL MERTRAV SERVICES GENERAUX","CITE BELLE VUE W.EL OUED"]
["I2664",24,"KHIARI ABDELKADER","SIDI AOUN W.EL OUED"]
["I2665",26,"MAZOUZI DJAMEL","EL MEGHAIER W.EL OUED"]
["I2666",26,"TAMMA DJEMOUI","CITE 17 OCTOBRE W.EL OUED"]
["I2667",30,"EURL TAXI AFRIKA","CITE RIMEL W.EL OUED"]
["I2668",45,"SARL FRERES SAADI INTER ET SERVICES","TAGHZOUT GUEMAR W.EL OUED"]
["I2669",55,"EURL MESBAHI","GUEMAR W.EL OUED"]
["I2670",55,"SARL MORDJANE SERVICES GENERAL","CITE MESSABA W.EL OUED"]
["I2671",30,"ABDESSADOK ALAEDDINE","HASSANI ABDELKRIM DEBILA W.EL OUED"]
["I2672",35,"AWEM EL OUED","CITE 08 MAI CHOTT W.EL OUED"]
["I2673",30,"ATALLAH WASSILA","CITE OUM SELMA W.EL OUED"]
["I2675",22,"SARL REDOUANI ET FRERES SERVICES","HOBBA REGUIBA W.EL OUED"]
["I2682",71,"DADDA BRAHIM","CITE 19 MARS EL OUED"]
["I2684",26,"LATRECHE OUALID","CITE CHOUAIHA HASSI KHALIFA W.EL OUED"]
["I2685",26,"SLIMANI HACEN","CITE SIDI ABDALLAH W.EL OUED"]
["I2686",22,"SARL ITIHAD BOUSBIA","CITE AOUACHIR ROBBAH W.EL OUED"]
["I2687",55,"BEY SAMIR","PLACE MARCHE W.EL OUED"]
["I2688",55,"SARL FILS KERROUCHE TRAVAUX PUBLICS","CITE CHOTT W.EL OUED"]
["I2689",55,"EURL EL ASSALA TRAVAUX PUBLICS","CITE 1 NOVEMBRE HASSI KHALIFA W.EL OUED"]
["I2690",30,"SNC MESBAHI ET CIE MINOTERIE EL TAJ EDDAHABI","Z.I KOUININE W.EL OUED"]
["I2691",30,"SARL COMPLEX TOUR SAHARIEN LA GAZELLE D'OR","RUE MOHAMED KHEMISTI W.EL OUED"]
["I2692",55,"SARL HYDRO-PETRO SERVICES","CITE CHOUHADA W.EL OUED"]
["I2693",71,"EURL FOTRAPUB","CITE SIDI ABDALLAH W.EL OUED"]
["I2694",55,"SARL ETANCHE BITUME","CITE CHOTT W.EL OUED"]
["I2695",35,"DIRECTION DELEGUE DE L'ACTION SOCIALE","CITE SAADA 1 NOVEMBRE EL MEGHAIER W.EL OUED"]
["I4601",55,"E.R.G.R AURES EPE/SPA","CITE 19 MARS W.EL OUED"]
["I4602",55,"EURL BEN MILOUD SERVICES","EL OGLA ROBBAH W.EL OUED"]
["I4603",55,"SARL BIALCO","CITE 17 OCTOBRE W.EL OUED"]
["I4604",45,"TEI KHEIRA","CITE EL HOURIA W.EL OUED"]
["I4605",45,"MELOUKA ADEL","CITE SAHAN 1 W.EL OUED"]
["I4606",30,"BEDDA ZEKRI MOHAMMED SALAH","HASSANI ABDELKRIM W.EL OUED"]
["I4607",26,"TORKI HOSSNI","CITE HEZAILA EL OUED"]
["I4608",26,"NECIRA BOUBAKER","CITE HAMAISSA HASSI KHALIFA W. EL OUED"]
["I4609",26,"CHETIOUI SAID","EL MEGHAIER W. EL OUED"]
["I4671",55,"SARL EL KARARCHA TRAVAUX","CITE CHOUHADA HASSI KHELIFA W. EL OUED"]
["I4672",30,"SARL CLINIQUE RYMEL","CITE BELLE VUE W. EL OUED"]
["I4673",26,"SARL EZZAHRA","HASSANI ABDELKRIM W. EL OUED"]
["I4684",22,"SOUID NOUREDDINE","GHAMRA CENTRE W. EL OUED"]
["I4910",22,"GUEDIRI MOHAMMED ABDELKAMEL","TAGHZOUT    W.EL OUED"]
["I4911",55,"SARL OUED EDAHAB INVESTISSEMENT","CITE CHOUHADA W.EL OUED"]
["I4912",30,"SPA PHARMA INVEST SUD","ZONE INDUSTRIELLE  KOUININE W.EL OUED"]
["I4914",10,"AMOURI ABDELMADJID","CITE TIKSEBT W.EL OUED"]
["I4916",26,"HANOUTI ALLA EDDINE","CITE AOUACHIR ROBBAH W. EL OUED"]
["I4917",24,"KASMI MESSAOUD","CITE 17 OCTOBRE DEBILA W. EL OUED"]
["I4918",35,"ETABLISSEMENT DES ENFANTS ASSISTES","CITE RIMEL W. EL OUED"]
["I4920",26,"MESSAI MOHAMMED MAHMOUD","CITE LASNAM W. EL OUED"]
["I7265",22,"CHERFI BOUBAKER","SIDI AOUN W.EL OUED"]
["I7268",22,"SARL TIR SERVICES","CITE OUAZITEN ROUTE DE TOUGGOURT W.EL OUED"]
["I7280",22,"SNC OULED OUN T.P","HAMRAIA W.EL OUED"]
["J1616",45,"ZAID MED LAMINE","CITE ISTEKLAL EL OUED"]
["J1638",26,"BRIK MERIEM","CITE MESSABA EL OUED"]
["J1667",26,"SEDIRA EL HABIB","CITE 1 NOVEMBRE EL OUED"]
["J1668",26,"KERMADI ALI","CITE OULED AHMED EL OUED"]
["J1670",26,"TEI OUARDA","CITE BELLE VUE EL OUED"]
["J1671",26,"CHERRAD ABDELKRIM","CITE BELLE VUE EL OUED"]
["J1672",26,"CHOUIA ABDERRAHMANE","CITE TIKSEPT EL OUED"]
["J1673",26,"HEZLA AMINE","CITE ENNOUR EL OUED"]
["J1674",26,"DJABALLAH BACHIR","CITE NAKHIL EL OUED"]
["J1675",26,"SOULAMI ATEF","CITE ISTEKLAL EL OUED"]
["J1676",26,"MENNI ZAKARIA","CITE SIDI MESTOUR EL OUED"]
["J1677",26,"MESSAOUDI TAHAR","RUE CHAHID HENKA ALI MAGRANE W. EL OUED"]
["J1678",26,"BOUSBIA LAICHE SAAD","CITE NAKHIL EL OUED"]
["J1679",26,"TLIBA YACINE","CITE ENNOUR EL OUED"]
["J1680",26,"SAI DJAMEL","CITE SIDI MESTOUR EL OUED"]
["J1681",26,"HABITA OUALID","CITE NAKHIL CHOTT EL OUED"]
["J1682",26,"ATTOUSSI OUALID","CITE 1 NOVEMBRE EL OUED"]
["J1683",24,"REZIG MOHAMMED","CITE ISTEKLAL KOUININE W. EL OUED"]
["J1684",45,"CHABANI MED ALI","CITE KARAMA BAYADA W.EL OUED"]
["J1686",45,"GHAMAM NOUAS AMOR","CITE CHOUHADA HASSI KHALIFA W.EL OUED"]
["J1687",55,"KADDOURI BACHIR","CITE LASNAM EL OUED W.EL OUED"]
["J1688",26,"SARL TEJ MULTI SERVICE","CITE MOUDJAHIDINE EL OUED"]
["J1689",26,"DEBILI SAIF EL ISLAM","MAGRANE W. EL OUED"]
["J4301",30,"MEISSA BACHIR","CITE ENNOUR EL OUED"]
["J4302",55,"BOUAMRA KHALIFA","CITE TIKSEPT EL OUED W.EL OUED"]
["J4303",55,"NESRI ABDELBAKI","CITE OULED MAYASSA ROBBAH W.EL OUED"]
["J4304",55,"NAROURA MOHAMED","HAMADINE MAGRANE W.EL OUED"]
["J4305",55,"GHARBI ADEL","CITE TIKSEPT EL OUED W.EL OUED"]
["J4306",45,"TOUATI TLIBA TAREK","HAMADINE MAGRANE W.EL OUED"]
["J4307",26,"HANI MOHAMMED LAID","KOUININE W. EL OUED"]
["J4308",26,"MENNANI RACHIDA","CITE SAHAN 1 EL OUED W.EL OUED"]
["J4309",26,"RAHMANI YACINE","CITE NEZLA W.EL OUED"]
["J4310",26,"MAHBOUB KHEZZANIA","CITE KAOUTHER EL OUED W.EL OUED"]
["J4311",26,"BAKINI SEBEE","CITE 1 NOVEMBRE EL OUED"]
["J4312",26,"BEN DELLALI  YAHIA","SIDI AMRANE DJAMAA W.EL OUED"]
["J4313",26,"GHEMAM ALI OUARDA","MERZAKA HASSI KHALIFA W.EL OUED"]
["J4314",26,"GHERBI ABDELKRIM","CITE CHOUHADA EL OUED W.EL OUED"]
["J4315",26,"AHMADI MOULDI","CITE NEDJAR EL OUED"]
["J4351",24,"KHELILI RABAH","OUM THIOUR MEGHAIER W. EL OUED"]
["J4352",26,"ZEGHDI MOHAMMED SALAH","CITE 1 NOVEMBRE EL OUED"]
["J4353",26,"BEN YAMMA DJAFAR","ROBBAH W. EL OUED"]
["J4354",24,"GHENAIM ABDELBAKI","CITE CHERGUIA HASSI KHALIFA W. EL OUED"]
["J4355",35,"CFPA KOUININE","CITE NASR KOUININE W.EL OUED"]
["J4356",55,"SARL SAD LAIB","CITE ENNOUR EL OUED W.EL OUED"]
["J4357",55,"SOUALAH MOHAMED BACHIR","CITE TELAIBA EL OUED W.EL OUED"]
["J4358",55,"EPIC DE WILAYA DE GESTION C.E.T","CITE 1ER NOVEMBRE EL OUED W.EL OUED"]
["J4359",55,"TEKSEBTI AHMED","CITE SALAMAT OUERMES W.EL OUED"]
["J4370",24,"GHERISSI AHMED","CITE BAB EL OUED W. EL OUED"]
["J4371",26,"FELIOUNE ABDALLAH","CITE BELLE VUE EL OUED"]
["J4372",26,"DEBBAH SAMAH","LOCAL 300 EL MEGHAIER W. EL OUED"]
["J4373",26,"SAKER HADDA","CITE 1 NOVEMBRE EL OUED"]
["J4374",24,"TOUAHRIA LAKHDAR","CITE CHOUHADA EL OUED"]
["J4375",26,"DIDA AZZEDDINE","CITE CHOUHADA HASSI KHALIFA W. EL OUED"]
["J4376",26,"SAADINE ALDJIA","CITE BAB EL OUED  W. EL OUED"]
["J4377",26,"TEDJANI MOHAMMED","CITE LASNAM EL OUED"]
["J4378",26,"BELLAMOUCHI ABDELMADJID","CITE BACHIR REZZAGUI OUERMES W. EL OUED"]
["J4379",26,"SENIGRA BOUBAKER","TAGHZOUT GUEMAR W. EL OUED"]
["J4380",55,"SPA SOPT EL OUED","Z.I TIKSEBT W. EL OUED"]
["J6701",35,"C.P.P.E.H.M DEBILA","DEBILA W. EL OUED"]
["J6702",55,"SARL FETOUNA SERVICES GENERAUX","CITE EL KAOUTHER BAYADA W. EL OUED"]
["J6703",45,"SARL LAOUINI & FILS TRAV.GEN ET SERVICES","CITE CHOUHADA EL OUED"]
["J6704",30,"MAOUCHE SEDDIK","NAKHLA ROBBAH W. EL OUED"]
["J6705",26,"SAIGHI MOHAMMED LAKHDAR","CITE SIDI ABDALLAH EL OUED"]
["J6706",26,"KIR FATMA","CITE CHOUHADA GUEMAR W. EL OUED"]
["J6707",24,"DEBBAR ABDERRAOUF","CITE CHOUHADA EL OUED"]
["J6708",24,"KARINI ZOHRA","CITE AFAK DJAMAA W. EL OUED"]
["J6709",55,"SAHRAOUI TAYEB","CITE BELLE VUE EL OUED"]
["J6710",26,"BAHI ABDELLATIF","CITE SAHANE 1 EL OUED"]
["J6714",10,"SARL ZAHRA PEINTURE","Z.I. KOUININE W. EL OUED"]
["J6748",10,"BAHRI MOHAMMED","CITE OUAZITEN EL OUED"]
["J6749",45,"KERROUCHE TEDJANI","HASSI KHALIFA W. EL OUED"]
["J6750",26,"HEBBAL ABDELKRIM","OUM THIOUR EL MEGHAIER W. EL OUED"]
["J6751",24,"KHEMIS AMMAR","SIDI AMRANE DJAMAA W. EL OUED"]
["J6752",24,"HEMICI ABDELDJABAR","CITE HAMAYSSA HASSI KHALIFA W. EL OUED"]
["J6753",35,"RESIDENCE UNIVERSITAIRE 1000 LITS NOUVELLE","CITE CHOTT EL OUED"]
["J6754",26,"LAIB MOHAMMED LAID","CITE 17 OCTOBRE DEBILA W. EL OUED"]
["J6755",55,"SARL DIMG GRANDS TRAVAUX","BAYADA W. EL OUED"]
["J6756",26,"OUELLABI ALI","CITE BELLE VUE EL OUED"]
["J6789",45,"ZEGHIB BACHIR","CITE CHOUHADA EL OUED"]
["J6790",45,"RAHAL LARBI","CITE BELLE VUE EL OUED"]
["J6791",35,"DIRECTION DU LOGEMENT EL OUED","CITE 19 MARS EL OUED"]
["J6792",35,"TRIBUNAL ADMINISTRATIF EL OUED","EL OUED"]
["J6793",45,"TLIBA BOUBAKER","CITE BEB EL OUED W. EL OUED"]
["J6794",24,"MESSAI AOUN MED SALAH","CITE SOUMAM BAYADA W. EL OUED"]
["J6795",24,"BENYAYA LAZHARI","DJAMAA W.EL OUED"]
["J6796",26,"DEBBAR MABROUKA","CITE ALI DERBAL ROBBAH W. EL OUED"]
["J9421",55,"SPA CHIALI SERVICES","PARTIE D'EL ARCH N° 11 CHEMORA W.BATNA"]
["J9431",35,"RESIDENCE UNIVERSITAIRE 1000 LITS NOUVELLE 01","CITE CHOTT EL OUED W.EL OUED"]
["J9432",35,"CFPA TALEB LARBI","TALEB LARBI W.EL OUED"]
["J9433",35,"INSFP EL MEGHAIER","EL MEGHAIER W. EL OUED"]
["J9434",55,"EURL HYDRAUGEL BOUSBIA SERVICES","CITE CHOUHADA W.EL OUED"]
["J9435",55,"EURL HYDRO PETRO SERVICES","CITE CHOUHADA W.EL OUED"]
["J9437",26,"ZERIG MOHAMMED BACHIR","LIZEREG TRIFAOUI W.EL OUED"]
["J9438",26,"SAADOUNI LAID","CITE CHOUHADA KOUININE W.EL OUED"]
["J9451",35,"E.H.O EL OUED","CITE ENNADHOUR EL OUED"]
["J9452",10,"SARL BEN AOUN EQUIPEMENT GENERALES","CITE SAHAN 1 EL OUED"]
["J9453",55,"SARL ARABIC ALGERIE ENTREPRISES","CITE ENNOUR EL OUED"]
["J9454",30,"SALHI MOHAMMED SALAH","CITE TIKSEBT EL OUED"]
["J9455",55,"YAHIA OMAR","ROUTE DE TEBESSA EL OUED"]
["J9456",24,"SOULAMI YOUCEF","KOUININE W. EL OUED"]
["J9457",24,"KHALDI NOUREDDINE","CITE BACHIR REZZAGUI OUERMES  EL OUED"]
["J9465",22,"SARL CHORAFA VENTE CARBURANT","POINT KM 60 HASSI KHALIFA W. EL OUED"]
["J9488",10,"EURL OASIS BOTTLE","CITE IZDIHAR BAYADA W. EL OUED"]
["J9489",10,"EURL SOUMADO","Z.I. CHOTT W. EL OUED"]
["J9490",30,"TEDJANI ALI","PLACE DE MARCHE EL OUED"]
["J9491",55,"EURL AMMARI LOCATION MAT.&TRAV.PUB","CITE DJEDLA EL OUED"]
["J9492",35,"INSFP DJAMAA","ROUTE DE BISKRA DJAMAA W. EL OUED"]
["J9493",35,"CFPA OUM TIOUR","OUM TIOUR W. EL OUED"]
["J9494",24,"BEKKOUCHE NADJIB","GHAMRA GUEMAR W.EL OUED"]
["J9495",26,"RAHAL FARES","CITE ANCIEN STILL EL MEGHAIER W.EL OUED"]
["J9496",22,"ABADI YOUCEF","CITE NACER BAYADA W.EL OUED"]
["K1064",25,"GD STILL R3924","STILL EL OUED"]
["K1657",25,"GD DJAMAA R3923","DJAMAA EL OUED"]
["K1658",25,"STATION GD EL OUED R3920","EL OUED"]
["K1659",25,"STATION GD GUEMAR R3921","GUEMAR EL OUED"]
["K1660",25,"GD EL MEGHAIER R3922","EL MEGHAIER"]
["L4754",55,"SNTP","EL OUED"]
["L7710",40,"MDN/DRC 1ERE RM","BLIDA"]
["L9700",35,"DGSN SDPA","ALGER"]
["N9447",55,"MAAMAR MABROUK","BP.17 EL OUED"]
["O1963",22,"FERDJANI MEFTAH","CITER 05 JUILLET 1962 TRGUIBA W.EL OUED"]
["O1964",22,"BOUMARAF NADIA RABIA","CITE OUIZITEN W.EL OUED"]
["O1970",22,"MEKNASSI LAZHAR","OUERMES EL OUED"]
["O1971",22,"HENKA MOHAMED TAHAR","CITE DRIMINI DEBILA W.EL OUED"]
["O1987",22,"SARL EL HADJ ZOUBEIDI SERVICES","CITE CHOUHADA KOUININE W.EL OUED"]
["O5501",26,"EURL TYRES SOUF","CITE 01 NOVEMBRE W.EL OUED"]
["O5503",22,"PVA EURL RAID GENERAL M. SERVICES","ZONE MULTI ACTIVITE NAIMA KOUININE W.EL OUED"]
["O5509",22,"SARL DOGGA LOCAT.&TRANSPORT ","REGUIBA W.EL OUED"]
["O5511",22,"SLIMANI TARZI","OUED ALENDA W.EL OUED"]
["O5515",22,"LABIDI KAMEL","EL MEGHAIER W. EL MEGHAIER"]
["O5520",22,"HEZLA ABDELGHANI","OUM TOUYOUR W.EL OUED"]
["S7011",55,"ZAOUI KAMEL","CITE 20 AOUT REGUIBA EL OUED"]
["S7012",35,"E.H.S EL OUED","RUE COLONEL SI EL HAWAS W.EL OUED"]
["S7013",26,"AMOURI ABDERRAZAK","CITE TEKSEBT EL OUED"]
["S7014",55,"SARL KHALIDJI S/S","CITE ENNOUR EL OUED"]
["S7015",10,"SARL SOUFIA","ZONE INDUSTRIELLE BAYADA"]
["S7016",55,"SARL EL AHMED SER.","CITE CHOUHADA EL OUED"]
["S7017",35,"COUR DE JUSTICE EL OUED","CITE 19 MARS EL OUED"]
["S7018",30,"SARL EL HARRIRI","HAMADINE MAGRANE EL OUED"]
["S7019",10,"SOCIETE KOUIDER SEL","EL HAMRAYA REGUIBA EL OUED"]
["S7020",26,"MOUSSAOUI ABDELHAMID","HASSI KHALIFA EL OUED"]
["S7021",35,"CENTRE MEDICAL HANDICAPES MENTALES EL MEGHAIER","EL MEGHAIER W.EL OUED"]
["S7022",26,"BOUSBIA LAICHE FAOUZI","CITE NAKHIL EL OUED"]
["S7023",55,"SOCIETE HAOUDH EL BARIK","REGUIBA EL OUED"]
["S7024",55,"RAHAL KHALED","CITE TEKSEBT EL OUED"]
["S7025",55,"MOUSSAOUI OUAFA","CITE CHOUHADA EL OUED"]
["S7028",26,"RAMDANI ALI","CITE EL NAKHIL EL OUED"]
["S7029",26,"ZEGHDI ALI","NOUVELLE ZONE URBAIE EL OUED"]
["S7030",26,"KAROUI MOHAMMED KAROUI","CITE EL RIMEL EL OUED"]
["S7038",24,"TOUATI HAMAD MAHMOUD","CITE NEZLA NOUVELLE MAGRANE EL OUED"]
["S7040",45,"DOU SAAD","CITE SAHAN -1- EL OUED"]
["S7041",24,"BOUSBIA LAICHE LAID","CITE CHOTT EL OUED"]
["S7045",55,"MEHRIA ABDESSETTAR","CITE SIDI MESTOUR EL OUED W.EL OUED"]
["S7061",22,"PVA ATIA BACHIR","KHOBNA REGUIBA EL OUED"]
["S7062",35,"E.P.S.P EL MEGHAIER","EL MEGHAIER EL OUED"]
["S7063",35,"E.P.S.P DJAMAA","DJAMAA EL OUED"]
["S7064",55,"HAMAMA AISSA","CITE SAHAN 2 EL OUED"]
["S7071",35,"E.P.H EL MEGHAIER","EL MEGHAIER W. EL OUED"]
["S7073",35,"C.N.R.C ANTENNE D'EL OUED","CITE EL RIMEL EL OUED W.EL OUED"]
["S7074",55,"SARL OUED DAHAB","CITE CHOUHADA EL OUED"]
["S7075",35,"E.P.H DJAMAA","DJAMAA W. EL OUED"]
["S7076",35,"E.P.S.P EL OUED","CITE 19 MARS EL OUED"]
["S7078",55,"CIE NLE DES TVX DE GENIE CIVIL DE CHINE(CCECC)","GARE SNTF MEGAIER EL OUED"]
["S7079",35,"E.P.S.P TALEB LARBI","TALEB LARBI EL OUED"]
["S7080",35,"E.P.S.P DEBILA","DEBILA EL OUED"]
["S7083",55,"BOUZID NABIL","CITE ANCIEN DJAMAA EL OUED"]
["S7085",10,"EURL MAAMRA PEINTURE","CITE 01 NOV EL OUED"]
["S7086",45,"SNC SOUAIDAA TRANSPORT ET SERVICES","GHAMRA EL OUED"]
["S7094",35,"RESIDENCE UNIVERSITAIRE 1000 LITS","EL OUED"]
["S7095",26,"SARL PNEUMATIQUE KECHIMMADI","CITE 1 NOVEMBRE EL OUED"]
["S7096",55,"SARL IRMA CONSTRUCTION ET TRAVAUX DE SUD","CITE 11 DECEMBRE 1960 GUEMAR EL OUED"]
["S7098",55,"EURL BOURAS GRANDS TRAVAUX","CITE ENNOUR EL OUED W.EL OUED"]
["S9502",26,"DERRADJI REDHA","CITE 01 MAI EL OUED"]
["S9503",55,"EURL MEHDA ABDELGHANI","CITE 01 NOVEMBRE MIH OUENSA EL OUED"]
["S9504",45,"SARL NANE TRANSPORT","CITE OULED AHMED W. EL OUED"]
["S9505",30,"HETTIRI MOULDI","CITE BOUGHZALIA RIBBAH W.EL OUED"]
["S9506",55,"EURL DAADY EXPORTATION","CITE EMIR ABDELKADER EL OUED"]
["S9507",26,"HEZLA HAMZA","CITE BELLE VUE EL OUED"]
["S9508",35,"E.P.S.P GUEMAR","GUEMAR EL OUED"]
["S9509",35,"DIR. TRANSMISSION NLE WILAYA","EL OUED"]
["S9513",55,"SARL SIDI AHMED LAID TRAVAUX PUBLIC","ROUTE DE TOUGGOURT EL OUED"]
["S9514",26,"MAZOUZI TAHAR","EL MEGHAIER EL OUED"]
["S9515",24,"BELAID ABDELGHANI","CITE BELLE VUE EL OUED"]
["S9519",45,"TLIBA ALI","CITE OULED AHMED EL OUED"]
["S9520",45,"ETAB.PUBLIC TRANSPORT URBAIN D'EL OUED","TISEPT EL OUED"]
["S9521",35,"E.P.H EL OUED","EL OUED"]
["S9522",24,"KASMI NADJIA","CITE EL NASR DEBILA EL OUED"]
["S9523",24,"BEN ALI ABDELBASSET","CITE IZDEHAR BAYADA W. EL OUED"]
["S9524",55,"SARL FRERES RAMDANI SERVICES","MIH OUENSA"]
["S9525",45,"SARL TAMMA ASSOCIES TRANSPORT DE VOYAGEURS","RUE GUEMMOUDI LARBI EL OUED"]
["S9527",55,"SARL STE TIR GRANDS TRAVAUX","CITE RYMEL EL OUED"]
["S9528",55,"SADINE HAMZA","CITE 17 OCTOBRE EL OUED"]
["S9529",30,"TARBAK ASSIA","CITE 1 NOVEMBRE EL OUED"]
["S9530",24,"ABID BACHIR","CITE ZAOUIA ROBBAH W.EL OUED"]
["S9531",24,"SALHI BADER","ROBBAH EL OUED"]
["S9532",35,"DIRECTION DE L'EMPLOI EL OUED","RUE SAID ABDELHAY EL OUED"]
["S9533",45,"SARL STE TORKI ET HAMADI SERVICES","CITE CHOUHADA KOUININE EL OUED"]
["S9534",35,"C.F.P.A DEBILA","DEBILA EL OUED"]
["S9535",35,"C.F.P.A HASSI KHALIFA","HASSI KHALIFA EL OUED"]
["S9536",55,"SARL STE FRERES GHARBI SERVICE ET TRAVAUX","CITE RYMEL EL OUED"]
["S9537",55,"SARL DJASED GRAND TRAVAUX ET SERVICES","CITE BELLE VUE EL OUED"]
["S9538",45,"EURL SOUFIA GESTION DES TAXIS","PLACE IRAQ EL OUED"]
["S9539",45,"EURL LOUJAINE TAXI","CITE RIMEL EL OUED W.EL OUED"]
["S9540",55,"EPIC O.N.A UNITE D'EL OUED","CITE 28 LOGTS BP 40 EL OUED"]
["S9542",55,"EL MOUMAYAZOUNE TRANSPORT ET SERVICES","CITE NEZLA MEHRIA EL OUED"]
["S9543",45,"SARL STE MOUHTAREF TRANSPORT ET SERVICES","CITE 1 NOVEMBRE EL OUED"]
["S9546",55,"SARL  LEGTRAV TRAVAUX PUBLICS","CITE BELLE VUE EL OUED W.EL OUED"]
["S9547",55,"ZEGHEB ALI","CITE 5 JUILLET REGUIBA EL OUED"]
["S9548",55,"SARL MAZINE SERVICES","CITE BELLE VUE EL OUED"]
["S9550",35,"DIRECTION DE L'ACTIVITE SOCIALE","CITE 19 MARS EL OUED"]
["S9552",26,"GHENNAMI RAIHANE","CITE SAHANE 1 EL OUED"]
["S9553",45,"LAIBI BEN SALEM","CITE AMIR AEK BAYADA W.EL OUED"]
["S9561",35,"D P M E EL OUED","RUE TALEB LARBI EL OUED"]
["S9562",35,"DIRECTION DE TOURISME EL OUED","CITE TALEB LARBI EL OUED"]
["S9563",55,"SARL FRERES MAMI LOCATION DE MATERIELS","CITE BELLE VUE TAGHZOUT EL OUED"]
["S9572",45,"AYACHI AMOR ALI","MAGRANE W.EL OUED"]
["S9573",30,"SARL DAK AUTO SERVICE","CITE CHOTT EL OUED W.EL OUED"]
["S9574",35,"CHAMBRE DE COMMERCE ET L'INDUSTRIE \"SOUF\"","CITE 400 LOGTS EL OUED"]
["S9575",10,"SARL AL MALAHATE","HAMRAIA EL OUED"]
["T0390",0,"ANTENNE COM EL OUED","EL OUED"]
["T0398",0,"CENTRE C M P UND EL OUED","EL OUED"]
["U2990",55,"EPE SPA EVSM","ROUTE DE DAR EL BEIDA SIDI MOUSSA"]
["V9285",40,"MDN/DRC 5EME RM","CONSTANTINE"]
["W6213",55,"BELLAHCEN KHEMISTI","CITE BELLE VUE EL OUED"]
["W6231",55,"SARL EL KARAMA GRAND TRAVAUX","PLACE DE L'IRAK EL OUED"]
["W6262",55,"REZZAG SALEM MESSAOUD","CITE DU 17 OCTOBRE W.EL OUED"]
["Y5095",40,"A N P 15eme G.G.F GUEMAR","GUEMAR W EL OUED"]
["Y5335",35,"ECOLE FONDAMENTALE","CHOUHADA EL OUED"]
["Z0901",10,"SARL EL WALID","ZONE INDUSTRIELLE KOUININE EL OUED"]
["Z0902",45,"SARL DOGGA LOCAT.&TRANSPORT ET SERV.GENER","HASSI KHALIFA EL OUED"]
["Z0903",26,"EURL SOCIETE MADI SALAS SERVICES","CITE EL KODS EL OUED"]
["Z0905",35,"ECOLE CEM 18 FEVRIER EL OUED","CITE 18 FEVRIER EL OUED"]
["Z0954",55,"SARL BOUGUERNINE BITUME","CITE CHOTT EL OUED"]
["Z0956",35,"BIBLIOTHEQUE PRINCIPALE","HASSANI ABDELKRIM EL OUED"]
["Z0958",45,"KERROUCHE LAKHDAR","CITE HAMAYSA HASSI KHALIFA EL OUED"]
["Z0959",10,"SARL SOFAPEINT","CITE 01 NOV EL OUED"]
["Z0960",35,"DIRECTION DES EQUIPEMENT PUBLICS","CITE 19 MARS 1962 W.EL OUED"]
["Z0961",55,"HEZLA MOHAMMED","HASSANI ABDELKRIM W. EL OUED"]
["Z0962",55,"SARL FUTURWAY","CITE EL MOUDJAHIDINE EL OUED"]
["Z0965",55,"SARL GENERAL NOUHOUD","CITE ENNOUR RTE TOUGGOURT EL OUED"]
["Z0966",55,"EURL EL FOUDHIL CONST.TRAV.PUB","RUE LARBI TEBESSI HASSANI ABDELKRIM EL OUED"]
["Z0967",45,"DHIAB ABDELBAKI","CITE 1 NOVEMBRE BAYADA EL OUED"]
["Z0968",45,"DOU ADEL","CITE EL NOUR EL OUED"]
["Z0969",45,"DJEDID AHMED","CITE MESSABA EL OUED"]
["Z0970",55,"DJEBNOUN FAYCAL","CITE TIKSEBT EL OUED"]
["Z0971",30,"MEZOUAR HACEN","CITE MESSAABA EL OUED"]
["Z0973",35,"CHAMBRE IND.& ART. ET DES METIERS","RUE TALEB LARBI EL OUED"]
["Z0982",55,"COSIDER CONSTRUCTION POLE G128","CITE 19 MARS EL OUED"]
["Z0983",24,"MESSAOUDI AZZEDDINE","CITE BELLE VUE EL OUED"]
["Z0985",22,"PVA AMIRAT MOHAMED LAMINE","HASSANI ABDELKRIM EL OUED"]
["Z0986",55,"HENKA DJAFAR","CITE 1 NOVEMBRE  EL OUED"]
["Z0987",35,"CFPA SIDI AMRANE","SIDI AMRANE DJAMAA W.EL OUED"]
["Z0988",55,"BOUKHEZNA MOHAMED","DEBILA CENTRE EL OUED"]
["Z0989",55,"LEGHDAMSI KHALED","CITE DJADLA EL OUED"]
["Z0990",55,"SARL EL IKHAA OUEL MAOUADA EQUIP.","CITE EMHERIS EL OUED"]
["Z0991",55,"SARL WALAA SOUF GRANDS TRAVAUX","CITE NAKHIL EL OUED"]
["Z0992",22,"PVA TLIBA NACER EDDINE","KOUININE EL OUED"]
["Z0993",45,"AYACHI AMOR BRAHIM","AYAICHA MAGRANE EL OUED"]
["Z0995",35,"ALGERIE TELECOM U.O.T EL OUED","BOULEVARD TALEB LARBI EL OUED"]
["Z0996",55,"SARL RAWANE SERVICE & ENTRE.GEN","CITE LASNAM EL OUED"]
["Z0997",30,"SARL CABLE MAHMOUDI","CITE 300 LOGTS EL OUED"]
["Z0998",55,"BOUSBIA SALAH LAICHE","CITE EL KAOUTHAR BAYADA EL OUED"]
["Z0999",35,"LYCEE CHAHID SOUALMI BRAHIM","STILL EL OUED"]
["Z1000",45,"SARL OULED EL HADJ KHALIFA TRANSP.PUB","CITE BELLE VUE EL OUED"]
["Z4001",55,"KADDOURI EL HABIB","HAAMADINE MAGRANE EL OUED"]
["Z4002",55,"GHERBI MAAMAR","CITE 1 NOVEMBRE EL OUED"]
["Z4004",55,"GHANIA ABDELAZIZ","RUE LAMAMRA BACHIR EL OUED"]
["Z4018",55,"MIHI ALI","CITE SAHANE 1 EL OUED"]
["Z4019",10,"SARL PLASTI MEX","CITE CHOTT EL OUED"]
["Z4020",55,"MOUSSAOUI BADREDDINE","CITE OUM SELMA EL OUED"]
["Z4021",45,"ABDALLAOUI MOHAMMED LASSAAD","CITE SIDI ABDALLAH EL OUED"]
["Z4022",55,"SARL ETBH CHIHANI","CITE 17 OCTOBRE EL OUED"]
["Z4023",30,"BELLA BACI TALAL","CITE 17 OCTOBRE EL OUED"]
["Z4024",45,"BEN AISSA BACHIR","CITE 17 OCTOBRE EL OUED"]
["Z4026",30,"KAROUI ASSAAD","CITE 400 LOGTS EL OUED"]
["Z4027",35,"CFPA TIKSEBT","TIKSEBT EL OUED W.EL OUED"]
["Z4039",5,"SONELAGAZ SPE","OUED ALENDA W.EL OUED"]
["Z4045",45,"GHENADRA SMAIL","CITE ISTEKLAL EL OUED"]
["Z4046",10,"SARL MERDHIA FIRST INDUSTRIE","ROUTE DE TOUGGOURT EL OUED"]
["Z4047",24,"DIDA ABDELALI","CITE IZDIHAR BAYADA W. EL OUED"]
["Z4048",55,"SARL SOGICO","CITE CHOUHADA EL OUED"]
["Z4049",45,"SAHRAOUI ABDELKAMEL","CITE SAHAN 1 EL OUED"]
["Z4050",24,"BEN ALI ALI","CITE IZDIHAR BAYADA EL OUED"]
["Z4051",35,"DIRECTION DES OEUVRES UNIVERSITAIRES EL OUED","CITE 400 LOGTS EL OUED"]
["Z4052",55,"EURL KODORATE TRAV.GEN","CITE 17 OCTOBRE EL OUED"]
["Z4053",55,"EURL NAHR AFAK CORPORATION ENTREPRISES","CITE 17 OCTOBRE EL OUED"]
["Z4055",55,"CHEKIMA MOHAMMED","DEBILA W.EL OUED"]
["Z4057",30,"EPIC ALGERIE POSTE UNITE EL OUED","CITE KODSI EL OUED"]
["Z4058",45,"EURL KAROUI TRANSPORT DE VOYAGEUR","CITE EL KODS EL OUED"]
["Z4059",55,"SNC DERDOURI ET CIE GRANDS TRAVAUX PUBLICS","NEZLA CHERGUIA REGUIBA EL OUED"]
["Z4060",55,"HECHIFA ABDERRAZAK","CITE ALI DERBAL ROBBAH EL OUED"]
["Z4061",10,"STE SOUF SEMOULE","CITE SIDI ABDALLAH EL OUED"]
["Z4062",10,"SARL LABO NEDJMA","ROUTE E TOUGGOURT EL OUED"]
["Z4063",45,"AMAMRA AMARA","CITE ENNOUR EL OUED"]
["Z4064",55,"EURL GHERBI EL HADI","CITE OULED AHMED EL OUED"]
["Z4065",45,"BEN KHALIFA ABDELMALEK","CITE LACHECHE EL OUED"]
["Z4073",22,"PVA BOUROGA NADJIBA","GHAMRA GHEMAR EL OUED"]
["Z4074",24,"ATTOUSSI AZZEDDINE","HASSANI ABDELKRIM EL OUED"]
["Z4075",45,"TAMMA AHMED","OUED ALENDA EL OUED"]
["Z4076",35,"CASNOS ANTENNE EL OUED","CITE 19 MARS EL OUED"]
["Z4077",55,"CHOUCHANI ABIDI","CITE 08 MAI AKFADOU DEBILA EL OUED"]
["Z4078",45,"HAFOUDA YAHIA","CITE RIMEL W. EL OUED"]
["Z4080",55,"GUEMARI AHMED SAID","CITE BELLE VUE EL OUED W.EL OUED"]
["Z4084",10,"MANSOUR ABDELFATTAH","CITE TIKSEBT EL OUED"]
["Z4089",24,"CHELLIG ABBAS","KOUININE W.EL OUED"]
["Z6701",55,"SARL ATIA MEHDI ET FRERES GRANDS TRAVAUX","MIH OUENSA EL OUED"]
["Z6702",45,"SEROUTI YACINE","CITE  SEROUTI W.EL OUED"]
["Z6703",55,"CHIKHA BELGACEM KHALED","CITE ENNOUR BAYADA W.EL OUED"]
["Z6705",55,"SARL EL ANAAM GRAND TRAVAUX ET HYDR.","CITE EL RIMEL EL OUED W.EL OUED"]
["Z6707",45,"MESSAOUDI ABDELKAMEL","RUE CH.LOBZA EL HABIB MAGRANE W.EL OUED"]
["Z6708",45,"HAFOUDA AHMED","CITE BEB EL OUED W.EL OUED"]
["Z6709",55,"EURL DRIHEM TRAVAUX & SERVICES","CITE OULED AHMED W. EL OUED"]
["Z6710",55,"DERKI AMMAR","CITE SIDI MESTOUR W.EL OUED"]
["Z6711",55,"BAHI ABDELLATIF","CITE SAHAN N°1 W.EL OUED"]
["Z6712",55,"KHELAIFA SALIM","HASSI KHALIFA W.EL OUED"]
["Z6713",55,"SARL GABOUS TRAVAUX PUBLICS","CITE CHOUHADA W.EL OUED"]
["Z6714",30,"KERMADI ALI","CITE OULED AHMED W.EL OUED"]
["Z6715",55,"TAMMA ALI","ROUTE DE TOUGGOURT W.EL OUED"]
["Z6716",45,"GHEZAIL DJEBBARI","CITE SAHAN W.EL OUED"]
["Z6727",24,"SARL PRODIAK","ZONE INDUSTRIEL KOUININE W.EL OUED"]
["Z6749",45,"RAHAL SMAIL","CITE TEKSEPT W. EL OUED"]
["Z6750",55,"SARL EL KANAS REAL.GENERALES","CITE CHOTT W. EL OUED"]
["Z6751",55,"HARIZ BELGACEM ALI","CITE EL KODS BAYADA W. EL OUED"]
["Z6752",55,"EURL TIAFTI TENFAOUI","MIH OUENSA W.EL OUED"]
["Z6753",45,"GHERIBI ABDELAZIZ","CITE SEROUTI W.EL OUED"]
["Z6754",55,"BEN AMOR DJAMEL","CITE SAHAN 1 W.EL OUED"]
["Z6755",55,"FETHIZA ALI YOUCEF","CITE MOUDJAHIDINE W.EL OUED"]
["Z6756",30,"BELLA BACI FARES","CITE TIKSEPT W.EL OUED"]
["Z6757",30,"BELLA BACI MONDJI","CITE BELLE VUE EL OUED W.EL OUED"]
["Z6758",30,"BOUREGAA MOHAMED","CITE AMIR ABDELKADER ROBBAH W.EL OUED"]
["Z6759",45,"BAHI ABDELOUAHED","CITE BELLE VUE EL OUED W.EL OUED"]
["Z6760",10,"SARL OASIS TREILLIS SOUDES","ZONE INDUSTRIELLE N°02 EL OUED W.EL OUED"]
["Z6761",55,"DOUIS MAHMOUD","CITE NOUAMEUR GUEMAR W.EL OUED"]
["Z6762",55,"EURL HAMMA BEDDA TRAVAUX PUBLICS","HASSI KHALIFA W.EL OUED"]
["Z6763",45,"BOUAZIZ HOCINE","CITE BELLE VUE EL OUED W.EL OUED"]
["Z6764",24,"MAHMOUDI ABDELMADJID","CITE EL RIMEL EL OUED W.EL OUED"]
["Z6765",24,"TIDJANI AHMED CHAOUKI","BAYADA W.EL OUED"]
["Z6778",55,"BEN AMARA OMAR","RTE DE TOUGGOURT W.EL OUED"]
["Z6780",1,"EURL EL MOSTAKBAL SERVICES AGRICOLES","DJEDAIDA GUEMAR W. EL OUED"]
["Z6794",55,"SEDIRA HAMZA","CITE OUM SELMA W.EL OUED"]
["Z6795",55,"EURL ALMALAKIA GLOBAL SERV.ET TRANS.","GHAMRA CENTRE GUEMAR W.EL OUED"]
["Z6796",55,"SARL COSTROUT","CITE BELLE VUE W.EL OUED"]
["Z6797",30,"ASSOCIATION TEJ POUR LA SANTE","CITE 80 LOGTS GUEMAR W.EL OUED"]
["Z6798",55,"BOUCEKRA DJAAFER","GHAMRA GUEMAR W.EL OUED"]
["Z6799",45,"REDOUANI SALAH","HOBBA REGUIBA W.EL OUED"]
["Z8511",55,"ATALLAH TAREK","PLACE DE MARCHE EL OUED"]
["Z8516",55,"EURL RACHI PEN TRAVAUX PUBLICS","CITE TIKSEPT EL OUED"]
["Z8517",55,"SARL EL BITRAA LOCATION SERVICES","CITE BELLE VUE EL OUED"]
["Z8518",35,"CFPA HASSANI ABDELKRIM","HASSANI EBDELKRIM W. EL OUED"]
["Z8519",24,"BEN AMARA FATIMA","CITE BELLE VUE EL OUED W.EL OUED"]
["Z8541",55,"HEZLAOUI FAOUZI","CITE BELLE VUE EL OUED"]
["Z8542",55,"EURL OMAR RT KAREK ABDELMADJID T.P","CITE 1 NOVEMBRE EL OUED"]
["Z8561",55,"DJARI MED RACHID","MAGRANE W. EL OUED"]
["Z8562",55,"SARL STAR SOUF SERVICES","NAKHLA EL OUED W. EL OUED"]
["Z8563",45,"BOUSBIA LAICHE TAREK","RTE DE TEBESSA W. EL OUED"]
["Z8564",45,"SARL ARDJOUNE MOHAMED ET FILS TRANSPORTS","STILL W. EL OUED"]
["Z8565",55,"LAIBI MOHAMMED","CITE KARAMA BAYADA W. EL OUED"]
["Z8567",71,"SARL EZZAHRA","HASSANI ABDELKRIM W.EL OUED"]
["Z8568",35,"ECOLE ENFANTS HANDICAPES AUDITIFS","REGUIBA W.EL OUED"]
["Z8588",55,"SARL EL HAMZA ENTREPRISES ELECTRICITE","CITE CHOTT EL OUED"]
["Z8589",24,"MOUSSAOUI MOHAMMED","CITE BELLE VUE EL OUED W.EL OUED"]
["Z8590",55,"GUERRAH ABDELGHANI","EL OGLA ROBBAH W EL OUED"]
["Z8591",10,"SARL MDF FABRICATION ALUMINIUM","RTE AIRPORT GUEMAR W EL OUED"]
["Z8592",55,"SARL BEKKAR TRAVAUX PUBLICS","CITE KAOUTHER BAYADA W EL OUED"]
["Z8593",55,"MEHRIA MED ALI","CITE ENNOUR W. EL OUED"]
["Z8594",45,"SNC BEN AMOR ET CIE","CITE 17 OCTOBRE EL OUED"]

{"sheet":"BLF","index":1,"n_rows":138,"n_cols":13,"rows_kept":138,"cut":false,"hidden":false,"merged":[]}
["BLF","Client","Raison Sociale","Date Doc.","Prod","Date Echeance","Montant","Pay",null,null,null,40,2]
["D2235606","I4684","SOUID NOUREDDINE","2023-09-03","CBR",{"$f":"Tableau2[[#This Row],[Date Doc.]]+45","v":"2023-10-18"},254599.64,"P"]
["D2235607","I4684","SOUID NOUREDDINE","2023-09-03","CBR",{"$f":"Tableau2[[#This Row],[Date Doc.]]+45","v":"2023-10-18"},344471.06,"P"]
["D2235728","E6582","HIMA ABDELHAK","2023-09-06","CBR","2023-10-19",551579.96,"P"]
["D2235737","E6582","HIMA ABDELHAK","2023-09-06","CBR","2023-10-19",344418.46,"P"]
["D2235657","E6739","TOUMI NOUREDDINE","2023-09-05","CBR","2023-10-19",715420.62]
["D2235652","E6759","PVA FERHAT ABDELMADJID","2023-09-04","LUB","2023-10-17",74371]
["D2235699","I4684","SOUID NOUREDDINE","2023-09-05","CBR","2023-10-19",169733.1]
["D2235761","J9496","ABADI YOUCEF","2023-09-07","CBR","2023-10-19",344399.9]
["D2235782","J9496","ABADI YOUCEF","2023-09-07","CBR","2023-10-19",678844.8]
["D2235802","J9496","ABADI YOUCEF","2023-09-07","CBR","2023-10-19",794769]
["D2235832","J9496","ABADI YOUCEF","2023-09-08","CBR","2023-10-19",715292.1]
["D2235647","O1987","SARL EL HADJ ZOUBEIDI SERVICES","2023-09-04","LUB",{"$f":"Tableau2[[#This Row],[Date Doc.]]+45","v":"2023-10-19"},74252]
["D1021078","O1987","SARL EL HADJ ZOUBEIDI SERVICES","2023-09-13","LUB","2023-10-19",76989]
["D2235702","O5520","HEZLA ABDELGHANI","2023-09-05","PNM","2023-10-19",587999.96]
["D2235738","I4684","SOUID NOUREDDINE","2023-09-06","CBR",{"$f":"Tableau2[[#This Row],[Date Doc.]]+45","v":"2023-10-21"},370968.84]
["D2235799","E6797","EURL ENT SALEMA SERVICES","2023-09-07","CBR",{"$f":"Tableau2[[#This Row],[Date Doc.]]+45","v":"2023-10-22"},1145769.08]
["D2235774","E6859","PVA BOUZGHAIA AICHA","2023-09-07","CBR",{"$f":"Tableau2[[#This Row],[Date Doc.]]+45","v":"2023-10-22"},821261.3]
["D2235763","E6861","SARL STATION GUEMARI SERVICES","2023-09-07","CBR",{"$f":"Tableau2[[#This Row],[Date Doc.]]+45","v":"2023-10-22"},370892.2]
["D2235784","E6861","SARL STATION GUEMARI SERVICES","2023-09-07","CBR",{"$f":"Tableau2[[#This Row],[Date Doc.]]+45","v":"2023-10-22"},254566.8]
["D2235807","E6859","PVA BOUZGHAIA AICHA","2023-09-08","CBR",{"$f":"Tableau2[[#This Row],[Date Doc.]]+45","v":"2023-10-23"},715292.1]
["D2235919","Z0985","PVA AMIRAT MOHAMED LAMINE","2023-09-10","CBR",{"$f":"Tableau2[[#This Row],[Date Doc.]]+45","v":"2023-10-25"},297038.75]
["D2235927","Z0985","PVA AMIRAT MOHAMED LAMINE","2023-09-10","CBR",{"$f":"Tableau2[[#This Row],[Date Doc.]]+45","v":"2023-10-25"},211988.86]
["D2235966","E6859","PVA BOUZGHAIA AICHA","2023-09-11","CBR",{"$f":"Tableau2[[#This Row],[Date Doc.]]+45","v":"2023-10-26"},79476.899999999994]
["D2235974","I4684","SOUID NOUREDDINE","2023-09-11","CBR",{"$f":"Tableau2[[#This Row],[Date Doc.]]+45","v":"2023-10-26"},297032.92]
["D2235958","I7265","CHERFI BOUBAKER","2023-09-11","CBR",{"$f":"Tableau2[[#This Row],[Date Doc.]]+45","v":"2023-10-26"},715292.1]
["D1021018","I7265","CHERFI BOUBAKER","2023-09-12","LUB","2023-10-26",396960]
["D1021019","I7265","CHERFI BOUBAKER","2023-09-12","LUB","2023-10-26",38145.449999999997]
["D1021080","I7265","CHERFI BOUBAKER","2023-09-13","CBR","2023-10-26",593989.19999999995]
["D1021025","O1963","FERDJANI MEFTAH","2023-09-12","LUB","2023-10-26",514647]
["D1021026","O1963","FERDJANI MEFTAH","2023-09-12","LUB","2023-10-26",76290.899999999994]
["D1021030","O5515","LABIDI KAMEL","2023-09-12","LUB","2023-10-26",993951]
["D1021020","Z0985","PVA AMIRAT MOHAMED LAMINE","2023-09-12","LUB","2023-10-26",198480]
["D1021051","Z0985","PVA AMIRAT MOHAMED LAMINE","2023-09-13","CBR","2023-10-26",297038.75]
["D2235936","Z0992","PVA TLIBA NACER EDDINE","2023-09-11","CBR",{"$f":"Tableau2[[#This Row],[Date Doc.]]+45","v":"2023-10-26"},715674.45]
["D1021021","I4684","SOUID NOUREDDINE","2023-09-12","CBR",{"$f":"Tableau2[[#This Row],[Date Doc.]]+45","v":"2023-10-27"},370968.84]
["D1021024","I4684","SOUID NOUREDDINE","2023-09-12","CBR",{"$f":"Tableau2[[#This Row],[Date Doc.]]+45","v":"2023-10-27"},297032.92]
["D1021002","Z0992","PVA TLIBA NACER EDDINE","2023-09-12","LUB",{"$f":"Tableau2[[#This Row],[Date Doc.]]+45","v":"2023-10-27"},252207.65]
["D1021107","O1987","SARL EL HADJ ZOUBEIDI SERVICES","2023-09-14","CBR",{"$f":"Tableau2[[#This Row],[Date Doc.]]+45","v":"2023-10-29"},715366]
["D1021127","O1987","SARL EL HADJ ZOUBEIDI SERVICES","2023-09-14","LUB",{"$f":"Tableau2[[#This Row],[Date Doc.]]+45","v":"2023-10-29"},66160]
["D1021177","I4684","SOUID NOUREDDINE","2023-09-16","CBR",{"$f":"Tableau2[[#This Row],[Date Doc.]]+45","v":"2023-10-31"},119239.98]
["D2304333","M6040","AGENT NAFTAL / BAG SPA","2023-10-12","PNM","2023-10-31",50800.01]
["D1021211","E6858","PVA BOUTERAA SALAH","2023-09-17","LUB",{"$f":"Tableau2[[#This Row],[Date Doc.]]+45","v":"2023-11-01"},132320]
["D1021238","I2675","SARL REDOUANI ET FRERES SERVICES","2023-09-17","CBR",{"$f":"Tableau2[[#This Row],[Date Doc.]]+45","v":"2023-11-01"},254566.8]
["D1021247","I2675","SARL REDOUANI ET FRERES SERVICES","2023-09-17","CBR",{"$f":"Tableau2[[#This Row],[Date Doc.]]+45","v":"2023-11-01"},715292.1]
["D1021229","O1971","HENKA MOHAMED TAHAR","2023-09-17","CBR",{"$f":"Tableau2[[#This Row],[Date Doc.]]+45","v":"2023-11-01"},715536.29]
["D1021214","O5511","SLIMANI TARZI","2023-09-17","CBR",{"$f":"Tableau2[[#This Row],[Date Doc.]]+45","v":"2023-11-01"},821261.3]
["D1021244","O5511","SLIMANI TARZI","2023-09-17","LUB",{"$f":"Tableau2[[#This Row],[Date Doc.]]+45","v":"2023-11-01"},273922]
["D1021246","O5511","SLIMANI TARZI","2023-09-17","LUB",{"$f":"Tableau2[[#This Row],[Date Doc.]]+45","v":"2023-11-01"},77941]
["D1021235","Z0992","PVA TLIBA NACER EDDINE","2023-09-17","CBR",{"$f":"Tableau2[[#This Row],[Date Doc.]]+45","v":"2023-11-01"},594187.44999999995]
["D1388253","E6582","HIMA ABDELHAK","2023-09-18","CBR",{"$f":"Tableau2[[#This Row],[Date Doc.]]+45","v":"2023-11-02"},737036.06]
["D1388263","E6861","SARL STATION GUEMARI SERVICES","2023-09-18","CBR",{"$f":"Tableau2[[#This Row],[Date Doc.]]+45","v":"2023-11-02"},344399.9]
["D1388275","E6861","SARL STATION GUEMARI SERVICES","2023-09-18","CBR",{"$f":"Tableau2[[#This Row],[Date Doc.]]+45","v":"2023-11-02"},254566.8]
["D1388264","I2675","SARL REDOUANI ET FRERES SERVICES","2023-09-18","CBR",{"$f":"Tableau2[[#This Row],[Date Doc.]]+45","v":"2023-11-02"},370892.2]
["D1388272","I2675","SARL REDOUANI ET FRERES SERVICES","2023-09-18","CBR",{"$f":"Tableau2[[#This Row],[Date Doc.]]+45","v":"2023-11-02"},821261.3]
["D1388265","O1987","SARL EL HADJ ZOUBEIDI SERVICES","2023-09-18","CBR",{"$f":"Tableau2[[#This Row],[Date Doc.]]+45","v":"2023-11-02"},715366]
["D1388282","O1987","SARL EL HADJ ZOUBEIDI SERVICES","2023-09-18","LUB",{"$f":"Tableau2[[#This Row],[Date Doc.]]+45","v":"2023-11-02"},148742]
["D1388334","E6759","PVA FERHAT ABDELMADJID","2023-09-19","LUB",{"$f":"Tableau2[[#This Row],[Date Doc.]]+45","v":"2023-11-03"},340082]
["D1388321","I7268","SARL TIR STATION SERVICES","2023-09-19","CBR",{"$f":"Tableau2[[#This Row],[Date Doc.]]+45","v":"2023-11-03"},715292.1]
["D1388337","I7268","SARL TIR STATION SERVICES","2023-09-19","LUB",{"$f":"Tableau2[[#This Row],[Date Doc.]]+45","v":"2023-11-03"},77941]
["D1388322","Z0985","PVA AMIRAT MOHAMED LAMINE","2023-09-19","CBR",{"$f":"Tableau2[[#This Row],[Date Doc.]]+45","v":"2023-11-03"},297038.75]
["D1388379","E6797","EURL ENT SALEMA SERVICES","2023-09-20","CBR",{"$f":"Tableau2[[#This Row],[Date Doc.]]+45","v":"2023-11-04"},1103333.19]
["D1388358","O1964","BOUMARAF NADIA RABIA","2023-09-20","CBR",{"$f":"Tableau2[[#This Row],[Date Doc.]]+45","v":"2023-11-04"},715292.1]
["D1388370","O1964","BOUMARAF NADIA RABIA","2023-09-20","CBR",{"$f":"Tableau2[[#This Row],[Date Doc.]]+45","v":"2023-11-04"},593989.19999999995]
["D1388428","I7268","SARL TIR STATION SERVICES","2023-09-21","CBR",{"$f":"Tableau2[[#This Row],[Date Doc.]]+45","v":"2023-11-05"},551561.4]
["D1388422","O1964","BOUMARAF NADIA RABIA","2023-09-21","CBR",{"$f":"Tableau2[[#This Row],[Date Doc.]]+45","v":"2023-11-05"},551561.4]
["D1388445","I2675","SARL REDOUANI ET FRERES SERVICES","2023-09-22","CBR",{"$f":"Tableau2[[#This Row],[Date Doc.]]+45","v":"2023-11-06"},423876.8]
["D2303762","E6759","PVA FERHAT ABDELMADJID","2023-09-23","LUB",{"$f":"Tableau2[[#This Row],[Date Doc.]]+45","v":"2023-11-07"},344280]
["D2303811","E6556","PVA MILOUDI ABDELKRIM","2023-09-24","LUB",{"$f":"Tableau2[[#This Row],[Date Doc.]]+45","v":"2023-11-08"},206691]
["D2303788","E6858","PVA BOUTERAA SALAH","2023-09-24","CBR",{"$f":"Tableau2[[#This Row],[Date Doc.]]+45","v":"2023-11-08"},715369.21]
["D2303807","E6858","PVA BOUTERAA SALAH","2023-09-24","CBR",{"$f":"Tableau2[[#This Row],[Date Doc.]]+45","v":"2023-11-08"},594029.18000000005]
["D2303823","E6858","PVA BOUTERAA SALAH","2023-09-25","CBR",{"$f":"Tableau2[[#This Row],[Date Doc.]]+45","v":"2023-11-09"},1033887.19]
["D2303831","I7265","CHERFI BOUBAKER","2023-09-25","CBR",{"$f":"Tableau2[[#This Row],[Date Doc.]]+45","v":"2023-11-09"},529846]
["D2303864","I7268","SARL TIR STATION SERVICES","2023-09-25","LUB",{"$f":"Tableau2[[#This Row],[Date Doc.]]+45","v":"2023-11-09"},203510.56]
["D2303826","O1971","HENKA MOHAMED TAHAR","2023-09-25","CBR",{"$f":"Tableau2[[#This Row],[Date Doc.]]+45","v":"2023-11-09"},530026.88]
["D2303858","Z0992","PVA TLIBA NACER EDDINE","2023-09-25","CBR",{"$f":"Tableau2[[#This Row],[Date Doc.]]+45","v":"2023-11-09"},874713.21]
["D2303904","Z0992","PVA TLIBA NACER EDDINE","2023-09-26","CBR",{"$f":"Tableau2[[#This Row],[Date Doc.]]+45","v":"2023-11-10"},381977.65]
["D2303505","E6556","PVA MILOUDI ABDELKRIM","2023-09-28","CBR",{"$f":"Tableau2[[#This Row],[Date Doc.]]+45","v":"2023-11-12"},185481.09]
["D2303513","O1971","HENKA MOHAMED TAHAR","2023-09-29","CBR",{"$f":"Tableau2[[#This Row],[Date Doc.]]+45","v":"2023-11-13"},715536.29]
["D2303519","O5511","SLIMANI TARZI","2023-09-29","CBR",{"$f":"Tableau2[[#This Row],[Date Doc.]]+45","v":"2023-11-13"},715292.1,""]
["D2303546","E6797","EURL ENT SALEMA SERVICES","2023-09-30","CBR",{"$f":"Tableau2[[#This Row],[Date Doc.]]+45","v":"2023-11-14"},344505.1]
["D2303556","I7265","CHERFI BOUBAKER","2023-09-30","CBR",{"$f":"Tableau2[[#This Row],[Date Doc.]]+45","v":"2023-11-14"},715292.1]
["D2303620","O1987","SARL EL HADJ ZOUBEIDI SERVICES","2023-10-01","LUB",{"$f":"Tableau2[[#This Row],[Date Doc.]]+45","v":"2023-11-15"},85911]
["D2303593","O5511","SLIMANI TARZI","2023-10-01","CBR",{"$f":"Tableau2[[#This Row],[Date Doc.]]+45","v":"2023-11-15"},381850.2]
["D2303650","E6861","SARL STATION GUEMARI SERVICES","2023-10-02","CBR",{"$f":"Tableau2[[#This Row],[Date Doc.]]+45","v":"2023-11-16"},344399.9]
["D2303667","E6861","SARL STATION GUEMARI SERVICES","2023-10-02","CBR",{"$f":"Tableau2[[#This Row],[Date Doc.]]+45","v":"2023-11-16"},254566.8]
["D2303653","O5503","PVA EURL RAID GENERAL MULTI SERVICES","2023-10-02","CBR",{"$f":"Tableau2[[#This Row],[Date Doc.]]+45","v":"2023-11-16"},715536.29]
["D2303674","O5515","LABIDI KAMEL","2023-10-02",null,{"$f":"Tableau2[[#This Row],[Date Doc.]]+45","v":"2023-11-16"},281270]
["D2303716","O5515","LABIDI KAMEL","2023-10-03",null,{"$f":"Tableau2[[#This Row],[Date Doc.]]+45","v":"2023-11-17"},114436.35]
["D1021307","C4591","BEY ABDELHAFID","2023-10-05","CBR",{"$f":"Tableau2[[#This Row],[Date Doc.]]+45","v":"2023-11-19"},1145550.6000000001]
["D1021316","C4591","BEY ABDELHAFID","2023-10-05","CBR",{"$f":"Tableau2[[#This Row],[Date Doc.]]+45","v":"2023-11-19"},691449.03]
["D1021278","E6582","HIMA ABDELHAK","2023-10-05","CBR",{"$f":"Tableau2[[#This Row],[Date Doc.]]+45","v":"2023-11-19"},922492.15]
["D1021296","E6759","PVA FERHAT ABDELMADJID","2023-10-05","CBR",{"$f":"Tableau2[[#This Row],[Date Doc.]]+45","v":"2023-11-19"},551592.34]
["D1021310","E6759","PVA FERHAT ABDELMADJID","2023-10-05","CBR",{"$f":"Tableau2[[#This Row],[Date Doc.]]+45","v":"2023-11-19"},370925.52]
["D1021293","I7265","CHERFI BOUBAKER","2023-10-05","CBR",{"$f":"Tableau2[[#This Row],[Date Doc.]]+45","v":"2023-11-19"},593989.19999999995]
["D1021304","O1964","BOUMARAF NADIA RABIA","2023-10-05","CBR",{"$f":"Tableau2[[#This Row],[Date Doc.]]+45","v":"2023-11-19"},715292.1]
["D1021285","O5511","SLIMANI TARZI","2023-10-05","CBR",{"$f":"Tableau2[[#This Row],[Date Doc.]]+45","v":"2023-11-19"},715292.1]
["D1021318","O5520","HEZLA ABDELGHANI","2023-10-05","CBR",{"$f":"Tableau2[[#This Row],[Date Doc.]]+45","v":"2023-11-19"},529846]
["D1021333","O5520","HEZLA ABDELGHANI","2023-10-06",null,{"$f":"Tableau2[[#This Row],[Date Doc.]]+45","v":"2023-11-20"},662307.5]
["D1021366","C4591","BEY ABDELHAFID","2023-10-07","CBR",{"$f":"Tableau2[[#This Row],[Date Doc.]]+45","v":"2023-11-21"},715292.1]
["D1021363","E6556","PVA MILOUDI ABDELKRIM","2023-10-07","CBR",{"$f":"Tableau2[[#This Row],[Date Doc.]]+45","v":"2023-11-21"},297029.59000000003]
["D1021357","E6759","PVA FERHAT ABDELMADJID","2023-10-07","CBR",{"$f":"Tableau2[[#This Row],[Date Doc.]]+45","v":"2023-11-21"},826904.86]
["D1021353","E6888","PVA LEMKADEM BRAHIM","2023-10-07",null,{"$f":"Tableau2[[#This Row],[Date Doc.]]+45","v":"2023-11-21"},715375.64]
["D1021362","E6888","PVA LEMKADEM BRAHIM","2023-10-07",null,{"$f":"Tableau2[[#This Row],[Date Doc.]]+45","v":"2023-11-21"},938472.64]
["D1021393","E6556","PVA MILOUDI ABDELKRIM","2023-10-08","CBR",{"$f":"Tableau2[[#This Row],[Date Doc.]]+45","v":"2023-11-22"},715427.05]
["D1021425","Z0985","PVA AMIRAT MOHAMED LAMINE","2023-10-08","CBR",{"$f":"Tableau2[[#This Row],[Date Doc.]]+45","v":"2023-11-22"},551643.39]
["D1021432","E6739","TOUMI NOUREDDINE","2023-10-09","CBR",{"$f":"Tableau2[[#This Row],[Date Doc.]]+45","v":"2023-11-23"},715420.62,""]
["D1021459","E6739","TOUMI NOUREDDINE","2023-10-09","CBR",{"$f":"Tableau2[[#This Row],[Date Doc.]]+45","v":"2023-11-23"},1034130.62,""]
["D1021462","O1987","SARL EL HADJ ZOUBEIDI SERVICES","2023-10-09","LUB",{"$f":"Tableau2[[#This Row],[Date Doc.]]+45","v":"2023-11-23"},148623]
["D2304252","E6759","PVA FERHAT ABDELMADJID","2023-10-10","CBR",{"$f":"Tableau2[[#This Row],[Date Doc.]]+45","v":"2023-11-24"},826904.86]
["D1021480","E6888","PVA LEMKADEM BRAHIM","2023-10-10",null,{"$f":"Tableau2[[#This Row],[Date Doc.]]+45","v":"2023-11-24"},715375.64]
["D2304260","I4684","SOUID NOUREDDINE","2023-10-10",null,{"$f":"Tableau2[[#This Row],[Date Doc.]]+45","v":"2023-11-24"},370968.84]
["D2304258","O1987","SARL EL HADJ ZOUBEIDI SERVICES","2023-10-10","CBR",{"$f":"Tableau2[[#This Row],[Date Doc.]]+45","v":"2023-11-24"},297013.76000000001]
["D1021490","O5503","PVA EURL RAID GENERAL MULTI SERVICES","2023-10-10","CBR",{"$f":"Tableau2[[#This Row],[Date Doc.]]+45","v":"2023-11-24"},821541.66]
["D1021476","O5520","HEZLA ABDELGHANI","2023-10-10","CBR",{"$f":"Tableau2[[#This Row],[Date Doc.]]+45","v":"2023-11-24"},593989.19999999995]
["D2304261","Z0985","PVA AMIRAT MOHAMED LAMINE","2023-10-10","CBR",{"$f":"Tableau2[[#This Row],[Date Doc.]]+45","v":"2023-11-24"},344481.89]
["D2304292","S7061","PVA ATIA BACHIR","2023-10-11",null,{"$f":"Tableau2[[#This Row],[Date Doc.]]+45","v":"2023-11-25"},715333.87]
["D2304306","E6859","PVA BOUZGHAIA AICHA","2023-10-12",null,{"$f":"Tableau2[[#This Row],[Date Doc.]]+45","v":"2023-11-26"},938389.1]
["D2304307","E6859","PVA BOUZGHAIA AICHA","2023-10-12","LUB",{"$f":"Tableau2[[#This Row],[Date Doc.]]+45","v":"2023-11-26"},620633]
["D2304308","E6859","PVA BOUZGHAIA AICHA","2023-10-12","LUB",{"$f":"Tableau2[[#This Row],[Date Doc.]]+45","v":"2023-11-26"},228872.7]
["D2304309","E6859","PVA BOUZGHAIA AICHA","2023-10-12","LUB",{"$f":"Tableau2[[#This Row],[Date Doc.]]+45","v":"2023-11-26"},320564]
["D2304310","E6859","PVA BOUZGHAIA AICHA","2023-10-12","LUB",{"$f":"Tableau2[[#This Row],[Date Doc.]]+45","v":"2023-11-26"},200782.99]
["D2304311","E6859","PVA BOUZGHAIA AICHA","2023-10-12","LUB",{"$f":"Tableau2[[#This Row],[Date Doc.]]+45","v":"2023-11-26"},45774.54]
["D2304312","E6859","PVA BOUZGHAIA AICHA","2023-10-12","LUB",{"$f":"Tableau2[[#This Row],[Date Doc.]]+45","v":"2023-11-26"},82960.08]
["D2304330","I7268","SARL TIR STATION SERVICES","2023-10-12","CBR",{"$f":"Tableau2[[#This Row],[Date Doc.]]+45","v":"2023-11-26"},821261.3]
["D2304321","O1963","FERDJANI MEFTAH","2023-10-12",null,{"$f":"Tableau2[[#This Row],[Date Doc.]]+45","v":"2023-11-26"},1059692]
["D2304355","O1971","HENKA MOHAMED TAHAR","2023-10-12","CBR",{"$f":"Tableau2[[#This Row],[Date Doc.]]+45","v":"2023-11-26"},636032.26]
["D2304336","O1987","SARL EL HADJ ZOUBEIDI SERVICES","2023-10-12","CBR",{"$f":"Tableau2[[#This Row],[Date Doc.]]+45","v":"2023-11-26"},821346.15]
["D2304334","O5503","PVA EURL RAID GENERAL MULTI SERVICES","2023-10-12","LUB",{"$f":"Tableau2[[#This Row],[Date Doc.]]+45","v":"2023-11-26"},35004.33]
["D2304342","O5520","HEZLA ABDELGHANI","2023-10-12","CBR",{"$f":"Tableau2[[#This Row],[Date Doc.]]+45","v":"2023-11-26"},715292.1]
["D2304337","S7061","PVA ATIA BACHIR","2023-10-12",null,{"$f":"Tableau2[[#This Row],[Date Doc.]]+45","v":"2023-11-26"},715333.87]
["D2304324","Z0985","PVA AMIRAT MOHAMED LAMINE","2023-10-12","CBR",{"$f":"Tableau2[[#This Row],[Date Doc.]]+45","v":"2023-11-26"},551643.39,""]
["D2304417","O5511","SLIMANI TARZI","2023-10-14",null,{"$f":"Tableau2[[#This Row],[Date Doc.]]+45","v":"2023-11-28"},191552.14]
["D2304414","S7061","PVA ATIA BACHIR","2023-10-14",null,{"$f":"Tableau2[[#This Row],[Date Doc.]]+45","v":"2023-11-28"},715333.87]
["D2304443","O1963","FERDJANI MEFTAH","2023-10-15",null,{"$f":"Tableau2[[#This Row],[Date Doc.]]+45","v":"2023-11-29"},1145550.6000000001]
["D2304474","O1963","FERDJANI MEFTAH","2023-10-16",null,{"$f":"Tableau2[[#This Row],[Date Doc.]]+45","v":"2023-11-30"},370892.2]
["D2304516","E6556","PVA MILOUDI ABDELKRIM","2023-10-17",null,{"$f":"Tableau2[[#This Row],[Date Doc.]]+45","v":"2023-12-01"},715427.05]
["D2304540","I4684","SOUID NOUREDDINE","2023-10-17","CBR",{"$f":"Tableau2[[#This Row],[Date Doc.]]+45","v":"2023-12-01"},254599.64,""]